Workbook

Sheet Cover Page
D1: Add company logo
N2: Version 24.2a (for incinerators) - 27/11/24
N4: Note that there is another version of this template available for co-incinerators
B8: Add photo
N13: Notes:
N14: This template may require adjustments by individual operators to meet specific reporting requirements as defined in the site Permit(s)
B29: Annual Performance Report 2024
B31: Permit EPR/NP3738SY
B33: SELCHP
B35: South East London Combined Heat and Power
B37: Veolia SELCHP Ltd
B39: Year: | C39: 2024
B41: Address: | C41: The Kennels Site, Landmann Way, Lewisham
B43: Tel: | C43: 02035676100
B45: Email: | C45: enquiries@selchp.com
B47: Prepared by: | C47: Shehzad Lokhandwala | F47: Position: | G47: Environmental Engineer (ERF)
B49: Approved by: | C49: Husain Suwasrawala | F49: Position: | G49: General Manager
B51: Version: | C51: 1
B53: Issue Date: | C53: 2025-01-27
C62: 9.245 | D62: 9.401 | E62: 9.358 | F62: 9.326

Sheet Contents
A1: =+'Cover Page'!$B$29 -> Annual Performance Report 2024 | E1: =+'Cover Page'!$B$33 -> SELCHP
A3: Contents | K3: Notes:
A4: Section | B4: Subject | H4: Page | K4: Section references and Page nos. to be inserted
B5: Facility Information | H5: 3 | K5: Sections and Subjects may require adjustment by individual operators to meet specific reporting requirements as defined in the sites Permit(s)
B6: Operational Data | H6: 4
B7: Operational Summary | H7: 6
B8: Performance Form 1 | H8: 8
B9: Energy Form 1 | H9: 9
B10: Permit Compliance | H10: 10
B11: Improvements | H11: 11
B12: Public Liaison | H12: 12
B13: Carbon dioxide and nitrous oxide emissions | H13: 13
B14: Residue Quality | H14: 15
B15: Emissions to Water | H15: 16
B16: Emissions to Air (periodically monitored) | H16: 17
B17: Emissions to Air (continuously monitored) | H17: 18
B18: Hydrogen Chloride emissions | H18: 19
B19: Sulphur Dioxide emissions | H19: 20
B20: Oxides of Nitrogen emissions | H20: 21
B21: Total Organic Carbon emissions | H21: 22
B22: Particulate Matter emissions | H22: 23
B23: Carbon Monoxide emissions | H23: 25
B24: Ammonia emissions | H24: 26
A27: Version Control
A28: Section | B28: Information | H28: Date
A35: Distribution
A36: Copy | B36: Name, Role | H36: No.
A45: This report is required under the Industrial Emissions Directive’s Article 55(2) requirements on reporting and public information on waste incineration plants and co-incineration plants, which require the operator to produce an annual report on the functioning and monitoring of the plant and make it available to the public.

Sheet Facility Info
A1: =+'Cover Page'!$B$29 -> Annual Performance Report 2024 | E1: =+'Cover Page'!$B$33 -> SELCHP
A3: Plant Description and Design | K3: Notes:
A5: In 1986, faced with the increasing scarcity and environmental problems of landfill, the London Boroughs of Lewisham, Southwark and Greenwich came together to search for a realistic alternative. In 1988, they formed a Consortium - South East London Combined Heat and Power - from which SELCHP, Energy Recovery Facility (ERF), now takes its name. The facility recovers heat energy from the combustion of non-hazardous waste to raise steam, to generate electricity from a steam turbine which is then exported to the National Grid. Residual steam from the process is used to heat a district heating network, which supplies heat for domestic heating and hot water to local residents. Strict environmental controls and proven operating experience ensure that SELCHP remains consistently compliant with environmental permitting regulations. Technical details of the plant: Two boilers supply steam to one common turbine Maximum Permitted Refuse throughput – 464,000 tonnes per annum (29 tonnes per hour per boiler) Number of tipping bays – 11 Steam output – 38 tonnes of steam per hour at 395°C and 46 bar Flue gas treatment – Selective Non-Catalytic Reduction (SNCR) DeNOx, activated carbon injection, semi-wet lime scrubber and high performance bag filters system, discharging into a 100 metre high chimney Electrical Generation Capacity – 35MWe and a District Heating potential capacity of 40MWth | K5: Include summary of plant design, design capacity, no. of combustion lines, electrical and heat capacity and any other general information that describes the facility, its location and purpose
A20: Summary of Operational Processes and Procedures
A22: The main purpose of the activity at SELCHP is to burn non-hazardous municipal waste and to recover energy in the form of steam for both; the export of heat via a district heating network and as electricity for export to the national grid. SELCHP is a consortium of Local Authorities and private enterprise that operates a 464,000 tonne per year, mass burn, municipal waste incinerator in Deptford in the London Borough of Lewisham. Waste is delivered both; directly to site by refuse collection vehicles and various other waste vehicles. Waste delivered to site is discharged into the waste storage bunker. Oversized and unsuitable wastes are rejected and removed. The waste is then charged into one of two furnaces by dedicated grab cranes. Hydraulic ram feeders control the charging rate of the waste to the furnace grate. Waste is burnt on a reverse acting stoker grate with combustion air supplied in a controlled manner to ensure efficient combustion. The production on Oxides of Nitrogen (NOx) by combustion is mitigated by the injection of ammonia solution into the furnace by a process of Selective Non-Catalytic Reduction (SNCR). Bottom ash from the grate is quenched in a water bath to prevent the release of dust and provide a gas seal, at the ash discharger outlet. Ferrous metal is recovered from the ash by a drum magnet. Residual ash is recovered and sent to a recycling facility in Greenwich, London. The hot gases from the combustion process are passed through a boiler to raise steam, which is then forwarded to a steam turbine to generate up to 32 MW of electricity for export to the national grid. Excess steam, of too low an enthalpy to generate electricity, is taken off the turbine, allowing for the export of heat via the District Heating network to local residents. This heat would otherwise be lost to atmosphere,as waste heat, via the Air Cooled Condenser (ACC). Exhaust gasses from the boiler are sent to the flue gas treatment plant. Firstly activated carbon is injected to adsorb mercury, heavy metals, dioxins and dioxin like compounds. Secondly, a semi-dry lime scrubbing plant removes acid gasses, predominantly hydrogen chloride (HCl) and sulphur dioxide (SO2). Lastly, the flue gases pass through a series of bad filters to control particulate emissions. The cleaned gasses are discharged from a 100 meter, twin flue (one for each furnace) chimney. SELCHP operates an Environmental Management system accredited to ISO 14001. There are no European sites within 10 km. Air dispersion modeling has established that the site has minimal impact on sites of special scientific interest (SSSI) within that radius. All emissions from the plant have been modelled, demonstrating that it is unlikely to have a significant impact on local air quality, due to it urban setting. There are no releases to controlled waters as part of the process. Process effluents are reused within the process. Residual effluents are released to sewer as trade effluent. A Household, commercial and industrial waste transfer station may also be operated within the permit boundary, under conditions set out in ‘Standard Rules Permit SR2008No1’ when required. | K22: Include summary of key processes and procedures such as (but not limited to); waste reception, control rooms, grate, bed and boiler, energy & heat generation, cooling systems, residue management, emission controls, health and safety systems, maintenance

Sheet Operational Data
A1: =+'Cover Page'!$B$29 -> Annual Performance Report 2024 | E1: =+'Cover Page'!$B$33 -> SELCHP
A3: Operational Data
A4: Plant Size | B4: 464000 | D4: tonnes pa | E4: 30 | F4: MWth | G4: 30 | H4: MWe | J4: Notes:
A5: No. of combustion lines | B5: 2 | D5: No. of Turbines: | F5: 1 | J5: * - RDF to include SRF
J6: ** - Combusted tonnage = tonnes delivered in period + (tonnes in bunker at start of period – tonnes in bunker at end of period), or equivalent calculation depending on plant type
A7: Waste types received | B7: Unit | C7: Q1 | D7: Q2 | E7: Q3 | F7: Q4 | G7: Year Total | H7: %
A8: Household / Local Authority | B8: tonnes | C8: 98231.51 | D8: 96669.68 | E8: 89651.71 | F8: 103725.55 | G8: =SUM(C8:F8) -> 388278.45 | H8: =IF(G8>0,G8/$G$18,"-") -> 0.9046908108
A9: Commercial & Industrial | C9: 16.7 | D9: 27.02 | E9: 4.92 | F9: 11.22 | G9: 59.86 | H9: 0.0001394741118 | J9: *** - CHP plants only
A10: Hazardous | C10: - | D10: - | E10: - | F10: - | G10: 0 | H10: - | J10: **** Availability Definition: 'the availability of a line is to be calculated by the number of hours the line reported Continuously Monitored emission levels to the Regulator through the calendar year divided by the total number of hours in that year. The overall plant availability is calculated as the Mean of all lines in the plant. For clarity this includes periods of abnormal operation.' Rationale: The primary function of an Energy from Waste facility is the disposal of waste. It follows therefore that the availability of a plant is determined by the period of time a facility spends undertaking this activity.
A11: Clinical | C11: 23.38 | D11: 23.78 | E11: 25.64 | F11: 25.02 | G11: 97.82 | H11: 0.0002279211095
A12: Waste wood (biomass) | C12: - | D12: - | E12: - | F12: - | G12: 0 | H12: -
A13: Refuse Derived Fuel * - H'hold/LA | C13: 321 | D13: 24 | E13: - | F13: - | G13: 345 | H13: 0.0008038517968
A14: Refuse Derived Fuel * - C&I | C14: - | D14: - | E14: - | F14: - | G14: 0 | H14: -
A15: MRF Residue | C15: 12709.48 | D15: 9472.5 | E15: 7822.46 | F15: 10398.02 | G15: 40402.46 | H15: 0.09413794223
A16: Other [Please specify] | C16: 0 | D16: 0 | E16: 0 | F16: 0 | G16: 0 | H16: -
A17: Other [Please specify] | C17: 0 | D17: 0 | E17: 0 | F17: 0 | G17: 0 | H17: -
A18: Total waste received | C18: =SUM(C8:C17) -> 111302.07 | D18: 106216.98 | E18: 97504.73 | F18: 114159.81 | G18: 429183.59
A19: Rejected Waste | C19: 0 | D19: 0 | E19: 0 | F19: 0 | G19: 0 | H19: =IF(G19>0,G19/$G$18,"-") -> -
A20: Unprocessed waste transferred out | C20: 0 | D20: 0 | E20: 0 | F20: 0 | G20: 0 | H20: -
A21: Total waste combusted ** | C21: 114139.19 | D21: 103889 | E21: 98047.5 | F21: 114969.7 | G21: 431045.39
J22: Password for protected cells A password has been set to prevent accidental editing of cells with formulae. If you still need to make an edit for some reason then the password = 1234
A23: Energy Usage / Export | B23: Unit | C23: Q1 | D23: Q2 | E23: Q3 | F23: Q4 | G23: Year Total | H23: KWh/te
A24: Power Generated | B24: MWh | C24: 68816 | D24: 65063 | E24: 62009 | F24: 71073 | G24: =SUM(C24:F24) -> 266961 | H24: =IF(G24>0,G24*1000/$G$21,"-") -> 619.3338479
A25: Power Exported | C25: 60427 | D25: 57482 | E25: 53881 | F25: 62613 | G25: 234403 | H25: 543.8011992
A26: Power Used on site | C26: 8389 | D26: 7581 | E26: 8128 | F26: 8460 | G26: 32558 | H26: 75.53264866
A27: Power Imported | C27: 0 | D27: 194 | E27: 17 | F27: 0 | G27: 211 | H27: 0.4895076131
A28: Parasitic Load | B28: % | C28: =IF(C24>0,1-C25/(C24+C27),"-") -> 0.1219047896 | D28: 0.1191443064 | E28: 0.1313158998 | F28: 0.119032544 | G28: 0.1226513257
A29: Thermal Energy Produced *** | B29: MWh | C29: - | D29: - | E29: - | F29: - | G29: =SUM(C29:F29) -> 0 | H29: =IF(G29>0,G29*1000/$G$21,"-") -> -
A30: Thermal Energy Exported *** | C30: 15875 | D30: 9703 | E30: 5939 | F30: 13754 | G30: 45271 | H30: 105.0260623
A31: R1 value (if applicable) | B31: R1 | G31: 0.71
A33: Waste Disposal & Recovery | B33: Unit | C33: Q1 | D33: Q2 | E33: Q3 | F33: Q4 | G33: Year Total | H33: % inputs
A34: APC Residues - produced | B34: tonnes | C34: 2904 | D34: 2817 | E34: 2420 | F34: 3037 | G34: =SUM(C34:F34) -> 11178 | H34: =IF(G34>0,G34/$G$21,"-") -> 0.02593230379
A35: IBA - produced | C35: 19793 | D35: 20383 | E35: 17175 | F35: 19983 | G35: 77334 | H35: 0.1794103401
A36: Metals recycling | C36: 2170 | D36: 1464 | E36: 1833 | F36: 2103 | G36: 7570 | H36: 0.0175619556
A37: Other | C37: 0 | D37: 0 | E37: 0 | F37: 0 | G37: 0 | H37: -
A38: Other | C38: 0 | D38: 0 | E38: 0 | F38: 0 | G38: 0 | H38: -
A39: Other | C39: 0 | D39: 0 | E39: 0 | F39: 0 | G39: 0 | H39: -
A41: Raw Material Usage | B41: Unit | C41: Q1 | D41: Q2 | E41: Q3 | F41: Q4 | G41: Year Total | H41: kg or Ltr /te
A42: Mains Water | B42: ltrs | C42: 29275000 | D42: 54977000 | E42: 69775000 | F42: 38279800 | G42: =SUM(C42:F42) -> 192306800 | H42: =IF(G42>0,G42/$G$21,"-") -> 446.1404865
A43: Other Water | B43: ltrs | C43: 0 | D43: 0 | E43: 0 | F43: 0 | G43: 0 | H43: -
A44: Ammonia | B44: kgs | C44: 470930 | D44: 483460 | E44: 448310 | F44: 488410 | G44: 1891110 | H44: 4.387264181
A45: Urea | B45: kgs | C45: 0 | D45: 0 | E45: 0 | F45: 0 | G45: 0 | H45: -
A46: Activated Carbon | B46: kgs | C46: 22250 | D46: 24900 | E46: 29850 | F46: 35320 | G46: 112320 | H46: 0.2605758062
A47: Lime / hydrated lime | B47: kgs | C47: 989340 | D47: 971560 | E47: 831940 | F47: 967020 | G47: 3759860 | H47: 8.722654475
A48: Fuel oil | B48: ltrs | C48: 90973 | D48: 51200 | E48: 210871 | F48: 93113 | G48: 446157 | H48: 1.035058048
A49: Gas | B49: cuf | C49: 0 | D49: 0 | E49: 0 | F49: 0 | G49: 0
A50: Other | C50: 0 | D50: 0 | E50: 0 | F50: 0 | G50: 0
A52: Summary | B52: Line/Unit | C52: Q1 | D52: Q2 | E52: Q3 | F52: Q4 | G52: Year Total | I52: Hrs in year
A53: Availability of waste combustion by line, hrs **** | B53: =+B5 -> 2 | C53: 2120.15 | D53: 1829.83 | E53: 1940.88 | F53: 2205.52 | G53: =SUM(C53:F53) -> 8096.38 | H53: =+G53/$I$53 -> 0.9217190346 | I53: 8784 | J53: Change this figure to 8784 in a leap year
B54: 2 | C54: 2118.77 | D54: 2116.75 | E54: 1796.1 | F54: 2055.58 | G54: 8087.2 | H54: 0.9206739526
B55: 3 | C55: 0 | D55: 0 | E55: 0 | F55: 0 | G55: 0 | H55: 0
B56: 4 | C56: 0 | D56: 0 | E56: 0 | F56: 0 | G56: 0 | H56: 0
B57: 5 | C57: 0 | D57: 0 | E57: 0 | F57: 0 | G57: 0 | H57: 0
A58: Overall Availability, mean avg. of all lines, hrs | C58: 2119 | D58: 1973 | E58: 1868 | F58: 2131 | G58: =AVERAGE(G53:G54) -> 8091.79 | H58: 0.9211964936
A59: Hours of turbine operations, hrs | B59: 1 | C59: 2184 | D59: 2090 | E59: 2199 | F59: 2208 | G59: =SUM(C59:F59) -> 8681 | H59: 0.9882741348
A60: Hours of turbine operations, hrs | B60: 2 | C60: 0 | D60: 0 | E60: 0 | F60: 0 | G60: 0 | H60: 0
A61: Hours of heat / steam export | C61: 0 | D61: 0 | E61: 0 | F61: 0 | H61: =IF(B61>0,G60/I53,"n/a") -> n/a
A62: Net Calorific Value of waste | B62: MJ/kg | C62: 9.245 | D62: 9.401 | E62: 9.358 | F62: 9.326 | G62: =AVERAGE(C62:F62) -> 9.3325
A63: Abnormal Events | B63: qty. | C63: 0 | D63: 0 | E63: 0 | F63: 0 | G63: =SUM(C63:F63) -> 0 | H63: =IF(G63>0,"yes","no") -> no
A64: Abnormal operation | B64: hours | C64: 0 | D64: 0 | E64: 0 | F64: 0 | G64: 0 | H64: =+(G64)/I53 -> 0
A65: Permit Breaches | B65: qty. | C65: 0 | D65: 0 | E65: 1 | F65: 0 | G65: 1 | H65: =IF(G65>0,"yes","no") -> yes

Sheet Operational Summary
A1: =+'Cover Page'!$B$29 -> Annual Performance Report 2024 | E1: =+'Cover Page'!$B$33 -> SELCHP
A3: Summary of Plant Operations and Maintenance during the reporting year | K3: Notes:
A5: Overall plant availability for 2024 was 92.37%, a significant improvment compared to 2023. This was due to the MET Police enforced shutdown in January 2023 to allow for a Police investigation and delayed return to service of the station following the annual maintenance shutdown. Boiler 1: In addition to planned outage in June, the boiler suffered multiple breakdowns in March,July, August, September due to NOx cannister explosions. Boiler 2: In addition to planned outage in July, the boiler suffered multiple breakdowns in February,June, July, August, October and December. The annual outage ran from the 16/06/24 to the 01/07/2024 for boiler 1 and from the 04/07/24 to the 18/07/2024 for boiler 2. | K5: Include summary of key operational and/or maintenance activity undertaken in the year, such as any major component upgrades and/or replacements
A29: Summary of Residue Handling for the reporting year
A31: All incinerator bottom ash is loaded to tipper trucks by excavators and sent for reprocessing at a dedicated and permitted facility in Charlton, London (Recycling code R4). Where the majority of ferrous and non-ferrous metals are extracted for sale to the metals traders. Residual aggregates are sold for use in the a range of permissible construction projects. Air pollution control residue, transported as a powder and loaded into road tankers, is predominantly sent to Veolia Empire Works, Walsall for treatment with waste industrial sulphuric/phosphoric acid and disposal to landfill (Disposal code D9). The remainder was sent to a deep storage facility (disposal code D12). Ferrous metal separated from the IBA is sold to and collected by reputable scrap metal traders. | K31: Include in here a summary of residue handling regimes and destinations
A54: =+'Cover Page'!C39 -> 2024 | B54: Plant shut-downs
A55: Date | B55: Reason for shut-down | K55: Provide a very brief reason for plant shut-down e.g. "Shut-down prior to major outage"; "Emergency shut-down due to boiler tube leak" There is no need to include periods of hot-standby here (e.g. to clear feed chute hopper blockages). For clinical waste incinerators which require regular shut-downs for boiler cleaning, there is no need to record these here.
A56: 14th-15th Feb | B56: Controlled shut-down due to refuse crane no. 1 and no. 2 failure, unable to feed waste - Line 1
A57: 14th Feb | B57: Controlled shut-down due to refuse crane no. 1 and no. 2 failure, unable to feed waste - Line 2
A58: 24th to 27th Feb | B58: Controlled shut-down due to repair Tube leak in the external economiser - Line 2
A59: 11th to 12th March | B59: Controlled shut-down due to repair Tube leak in the internal economiser - Line 1
A60: 16th June- 1st July | B60: Planned shut down outage - Line 1
A61: 27th- 30th June | B61: Controlled shut-down due to repairs on grate- Line 2
A62: 2nd- 3rd July | B62: Controlled shut-down to UFA fan bearing and return from outage- Line 1
A63: 14th -15th July | B63: Boiler trip- Line 1
A64: 21st- 22nd July | B64: Controlled shut-down due to Ash discharge blockage- Line 1
A65: 04th- 18th July | B65: Planned shut down outage - Line 2
A66: 30th-31st July | B66: Controlled shut-down to repair Tube leak - Line2
A67: 1st-3rd Aug | B67: Controlled shut-down due to tube leak and repairs on grate- Line 1
A68: 13th-16th Aug | B68: Controlled shut-down due to tube leak repairs- Line 1
A69: 01st Aug | B69: Controlled shut-down to repair Tube leak - Line2
A70: 05th- 07th Aug | B70: Controlled shut-down to repair Tube leak - Line2
A71: 12th- 14th Sep | B71: Controlled shut-down due to repairs on grate- Line 1
A72: 7th- 9th Oct | B72: Controlled shut-down due to repairs on grate- Line 2
A73: 14th Oct | B73: ID fan tripped- Line 2
A74: 15th Oct | B74: ID fan tripped- Line 2
A75: 28th Nov | B75: Controlled shut-down due to lime plant change over- Line 1
A76: 14th- 18th Dec | B76: Controlled shut-down due to repairs on grate- Line 2

Sheet Perf. Form 1
A1: =+'Cover Page'!C39 -> 2024 | B1: Annual Reporting Performance Form 1
A3: =+'Cover Page'!B31 -> Permit EPR/NP3738SY | F3: Operator: | G3: =+'Cover Page'!B37 -> Veolia SELCHP Ltd
A4: Facility: | B4: =+'Cover Page'!B33:I33 -> SELCHP | F4: Form: | G4: Performance 1
A6: Reporting Period from: | D6: 2024-01-01 | F6: to: | G6: 2024-12-31
A8: =+A1 -> 2024 | B8: Annual Reporting of Waste Disposal and Recovery
A9: Waste Description | C9: Disposal Route(s) | E9: Disposal Tonnes | G9: Recovery Tonnes | I9: % / tonne of waste incinerated
A10: 1) Hazardous Wastes
A11: APC Residues | C11: D9 | E11: 11178 | G11: 0 | I11: =IF((E11+G11)>0,(E11+G11)/'Operational Data'!$G$21, "-") -> 0.02593230379
A12: IBA | E12: 0 | G12: 0 | I12: =IF((E12+G12)>0,(E12+G12)/'Operational Data'!$G$21, "-") -> -
I13: =IF((E13+G13)>0,(E13+G13)/'Operational Data'!$G$21, "-") -> -
I14: =IF((E14+G14)>0,(E14+G14)/'Operational Data'!$G$21, "-") -> -
A15: Total Hazardous Waste | E15: =SUM(E11:F14) -> 11178 | G15: =SUM(G11:H14) -> 0 | I15: =IF((E15+G15)>0,(E15+G15)/'Operational Data'!$G$21, "-") -> 0.02593230379
A17: 2) Non-Hazardous Wastes
A18: IBA | C18: R5 | E18: 0 | G18: 77333.14 | I18: =IF((E18+G18)>0,(E18+G18)/'Operational Data'!$G$21, "-") -> 0.1794083449
A19: Ferrous Metal | C19: R4 | E19: 0 | G19: 7570 | I19: =IF((E19+G19)>0,(E19+G19)/'Operational Data'!$G$21, "-") -> 0.0175619556
A20: Process Water | I20: =IF((E20+G20)>0,(E20+G20)/'Operational Data'!$G$21, "-") -> -
I21: =IF((E21+G21)>0,(E21+G21)/'Operational Data'!$G$21, "-") -> -
I22: =IF((E22+G22)>0,(E22+G22)/'Operational Data'!$G$21, "-") -> -
A23: Total Non-Hazardous Waste | E23: =SUM(E18:F22) -> 0 | G23: =SUM(G18:H22) -> 84903.14 | I23: =IF((E23+G23)>0,(E23+G23)/'Operational Data'!$G$21, "-") -> 0.1969703005
A24: TOTAL WASTE | E24: =+E23+E15 -> 11178 | G24: =+G23+G15 -> 84903.14 | I24: =IF((E24+G24)>0,(E24+G24)/'Operational Data'!$G$21, "-") -> 0.2229026043
A26: Operator’s comments :
A31: =+A1 -> 2024 | B31: Annual Reporting of Water and Other Raw Material Usage
A32: Raw Material | E32: Usage | G32: Unit | H32: Specific Usage | J32: Unit
A33: Mains Water | E33: =+'Operational Data'!G42/1000 -> 192306.8 | G33: m3 | H33: =IF(E33>0,E33/'Operational Data'!$G$21,"-") -> 0.4461404865 | J33: m3/te
A34: Total Water | E34: =+'Operational Data'!G43+'Operational Data'!G42/1000 -> 192306.8 | G34: m3 | H34: =IF(E34>0,E34/'Operational Data'!$G$21,"-") -> 0.4461404865 | J34: m3/te
A35: Urea / Ammonia | E35: =+'Operational Data'!G44 -> 1891110 | G35: kg | H35: =IF(E35>0,E35/'Operational Data'!$G$21,"-") -> 4.387264181 | J35: kg/te
A36: Activated Carbon | E36: =+'Operational Data'!G46 -> 112320 | G36: kg | H36: =IF(E36>0,E36/'Operational Data'!$G$21,"-") -> 0.2605758062 | J36: kg/te
A37: Lime / hydrated lime / Sodium Bicarb. | E37: =+'Operational Data'!G47 -> 3759860 | G37: kg | H37: =IF(E37>0,E37/'Operational Data'!$G$21,"-") -> 8.722654475 | J37: kg/te
A39: Operator’s comments :
A43: =+A31 -> 2024 | B43: Annual Reporting of other performance indicators
A44: Parameter | C44: Results by Line
C45: A1 | D45: A2 | E45: A3 | F45: A4 | G45: A5 | I45: Turbine 1 | J45: Turbine 2
A46: Operating hours for the year, hours | C46: 8096.38 | D46: 8087.2 | I46: 8680.8
A47: Number of periods of abnormal operation, qty. | C47: 0 | D47: 0
A48: Cumulative hours of abnormal operation for this year, hours | C48: 0 | D48: 0
A50: Operator’s comments :
A54: Signed: | B54: Shehzad | G54: Date: | H54: 2025-01-23
C62: 9.245 | D62: 9.401 | E62: 9.358 | F62: 9.326

Sheet Energy Form 1
A1: =+'Cover Page'!C39 -> 2024 | B1: Annual Reporting of Energy Usage/Export
A3: =+'Cover Page'!B31 -> Permit EPR/NP3738SY | F3: Operator: | G3: =+'Cover Page'!B37 -> Veolia SELCHP Ltd
A5: Facility: | B5: =+'Cover Page'!B33:I33 -> SELCHP | F5: Form: | G5: Energy 1
A7: Reporting Period from: | D7: =+'Perf. Form 1'!D6:E6 -> 2024-01-01 | F7: to: | G7: =+'Perf. Form 1'!G6:H6 -> 2024-12-31
A9: Energy Source | D9: Energy Usage | F9: Unit | G9: Specific Usage (KWh/tonne incinerated
A10: Electricity Produced | D10: =+'Operational Data'!G24 -> 266961 | F10: MWh | G10: =+'Operational Data'!H24 -> 619.3338479
A11: Electricity Imported | D11: =+'Operational Data'!G27 -> 211 | F11: MWh | G11: =+'Operational Data'!H27 -> 0.4895076131
A12: Electricity Exported | D12: =+'Operational Data'!G25 -> 234403 | F12: MWh | G12: =+'Operational Data'!H25 -> 543.8011992
A13: Gas Oil | F13: tonnes
A14: Steam/hot water exported | D14: =+'Operational Data'!G30 -> 45271 | F14: GWh | G14: =+'Operational Data'!H30 -> 105.0260623
A18: Operator’s comments :
A29: Signed: | B29: Shehzad | G29: Date: | H29: 2025-01-23
C62: 9.245 | D62: 9.401 | E62: 9.358 | F62: 9.326

Sheet Permit Compliance
A1: =+'Cover Page'!$B$29 -> Annual Performance Report 2024 | E1: =+'Cover Page'!$B$33 -> SELCHP
A3: Summary of Permit Compliance
A5: Compliance with permit limits for continuously monitored pollutants
A7: The plant met its emission limits as shown in the table below:
A8: Substance | C8: Percentage time compliant during operationNote 1 | L8: Notes:
C9: Half-hourly limit | F9: Daily limit | L9: Note 1: Please report to 2 decimal places, i.e. xx.xx% Note 2: Please enter into this table any permit non-compliances that the EA has given a CCS score for. Please also enter any other non-compliances which you have notified to the EA (e.g. ELV exceedances) but which have not yet been assessed by the EA. There is no need to enter any notifications which were subsequently assessed by the EA not to be permit breaches. Note 3: Please enter information here (rather than just referencing the notifications that were sent to the EA) including where relevant the incineration line reference, pollutant and value of the measured result for any ELV exceedances.
A10: Particulates | C10: 1 | F10: 1
A11: Oxides of nitrogen | C11: 1 | F11: 1
A12: Sulphur dioxide | C12: 1 | F12: 1
A13: Carbon monoxide | C13: 100% of 95% of 10-min averages | F13: 1
A14: Total organic carbon | C14: 1 | F14: 1
A15: Hydrogen chloride | C15: 1 | F15: 1
A16: Hydrogen fluoride | C16: 1 | F16: 1
A19: Summary of non-compliances under the permit Note 2
A20: Date | B20: Summary of non-compliance Note 3 | D20: Reason | G20: Measures taken to prevent reoccurrence | H20: CCS score if applicable*
H21: Impact | I21: Root cause
A22: 2024-08-20 | B22: A2 Dioxins and Furans (NATO I-TEQ) of 0.088 - 0.089 ng/m3 with a measurement uncertainty of 0.019 against the limit of 0.06 ng/m3 | D22: It is assumed that the potential small variation in waste input composition during the exceedance period could have been a likely contributing factor. | G22: Dioxins protocol followed and two additional accelerated stack samplings conducted. Following techical review caarbon dosing rate across both boilers was increased. | H22: 4 | I22: None
A27: *If the Environment Agency (EA) has given a Compliance Classification Scheme (CCS) score due to a permit non-compliance it should be entered here (CCS4 = No impact; CCS3 = Minor impact; CCS2 = Significant impact; CCS1 = Major impact). If the EA has not yet assessed a non-compliance which you have notified to them, these columns should be left blank. Enter N/A if no score was given for the root cause.
A29: Summary of any complaints received and actions to taken to resolve them.
A30: Date | B30: Summary of complaint [including Line/Reference] | E30: Reason (including whether substantiated by the operator or the EA) | H30: Measures taken to prevent reoccurrence
A31: 2024-03-04 | B31: 175215- Noise complaint by MoP, email to selchp.enquiries | E31: Other industrial site in surrounding area. | H31: N/A
A32: 2024-09-12 | B32: 208973- Local resident mistook condensing steam from stack for smoke. | E32: Wrong assumption | H32: N/A
C62: 9.245 | D62: 9.401 | E62: 9.358 | F62: 9.326

Sheet Improvements
A1: =+'Cover Page'!$B$29 -> Annual Performance Report 2024 | E1: =+'Cover Page'!$B$33 -> SELCHP
A3: Summary of Plant Improvements
A5: Summary of any efficiency improvements that have been completed within the year.
A6: In conjunction with Westminster city council, a private wire project was completed in 2023 to supply electrical power to charge the new EV refuse collection vehicles at a neighbouring vehicle depot. Transmission losses should be lower than supplying the same power to the national grid.
A16: Summary of any permit improvement conditions that have been completed within the year and the resulting environmental benefits.
A17: n/a
A27: Summary of any changes to the plant or operating techniques which required a variation to the permit and a summary of the resulting environmental impact.
A28: None
A38: Summary of any other improvements made to the plant or planned to be made and a summary of the resulting environmental benefits.
A39: As part of the life cycle analysis of the Facility the CEMS system was replaced in October 2024. All existing analysers were replaced, plus an additional standby system was installed so that each incineration line has a dedicated standby system enhancing the system reliability and efficiency.

Sheet Public Liasion
A1: =+'Cover Page'!$B$29 -> Annual Performance Report 2024 | E1: =+'Cover Page'!$B$33 -> SELCHP
A3: Details of Public & Stakeholder Liaison
A5: Summary of events held during the reporting year.
A6: Date | C6: Description
A7: Various | C7: Site tours are laid on for internal and external stakeholders, as well as, higher education students. Tours are requested at selchp.com and are approved on a case by case basis.
A9: 2024-09-22 | C9: SELCHP annual open day, as part of ‘Open House London’
A16: List of events planned for next year
A17: Date | C17: Description
A18: Various | C18: Site tours are laid on for internal and external stakeholders, as well as, higher education students. Tours are requested at selchp.com and are approved on a case by case basis.
A20: 2025-09-01 | C20: It is intended that an open day will be held in 2025.
A29: If you wish to be involved in the public liaison programme, please contact enquiries@selchp.com

Sheet CO2 N2O
A1: =+'Cover Page'!$B$29 -> Annual Performance Report 2024 | C1: =+'Cover Page'!$B$33 -> SELCHP
A3: Carbon dioxide emissions and biogenic content of waste inputs | F3: Notes:
A5: Carbon dioxide emissions (all types of plant)
B6: Annual mass of carbon dioxide released | C6: tonnes | D6: 354284
B7: Annual mass of carbon dioxide released per tonne of waste burned | C7: t CO2 / t waste | D7: =D6/'Operational Data'!G21 -> 0.8219180815
B8: Annual mass of carbon dioxide released per MWh of energy exported | C8: t CO2 / MWh export | D8: =D6/'Operational Data'!G25 -> 1.511431168
B9: Description of how annual carbon dioxide mass emission has been calculated. See Note 1 | C9: Average of average CO2% over the year converted to mg/m3 of flue gas and multiplied by total flue gas volume. All data from CEMS DHAS, QAL2'ed and QAL3'ed. | F9: Note 1: All permits require operators to continuously monitor CO2 to EN14181 and flow to BS EN 16911-2 (unless otherwise agreed in writing). Operators must therefore use the results from these instruments to calculate their annual CO2 emissions. Where an operator does not have a flow meter calibrated to BS EN 16911-2, the averaged flow measurement from that year's periodic monitoring can be used instead. If the plant does not have calibrated CO2 CEMS, a suitably justified emissions factor can be used.
A10: Nitrous oxide emissions (only plants which use ammonia or urea to abate NOx emissions)
B11: Annual mass emissions of nitrous oxide | C11: tonnes N2O | D11: 10.317
B12: Description of how annual nitrous oxide mass emission has been calculated See Note 2 | C12: Average of average CO2% over the year converted to mg/m3 of flue gas and multiplied by total flue gas volume. All data from CEMS DHAS, QAL2'ed and QAL3'ed. | F12: Note 2: All permits require operators to continuously monitor N2O to EN14181 and flow to BS EN 16911-2, unless otherwise agreed in writing. Operators must therefore use the results from these instruments to calculate their annual N2O emissions. Where an operator does not have a flow meter calibrated to BS EN 16911-2, the averaged flow measurement from periodic monitoring can be used instead. If the plant does not have calibrated N2O CEMS, data from periodic monitoring or a suitably justified emissions factor can be used instead.
A13: Total annual carbon dioxide + nitrous oxide emissions. See Note 3. | C13: tonnes CO2e | D13: =(D11*265)+D6 -> 357018.005 | F13: Note 3: Total annual carbon dioxide and nitrous oxide emissions reported as carbon dioxide equivalent where 1 tonne nitrous oxide is equivalent to 265 tonnes carbon dioxide.
A14: Biogenic CO2 emissions (See Note 4) | F14: Note 4: Only plants combusting residual municipal waste, refuse derived fuel or solid recovered fuel need complete this section.
B15: Percentage of total carbon dioxide emissions arising from biogenic waste | C15: % | D15: 0.5394
B16: No. of measurements undertaken | C16: Number | D16: 12
B17: Description of how percentage biogenic carbon dioxide emissions have been measured or calculated. See Note 5 | C17: Calculated by BIOMA software using CEMS data. | F17: Note 5: The results from C14 sampling should be used if this is carried out at the plant (either via an installed sampler or from spot samples). Otherwise, as an approximation (and in lieu of any more accurate metrics which may be developed in future), the measured or estimated biogenic fraction by net calorific value (see Note 6) can be assumed to be the same as the biogenic CO2 fraction of the total CO2 emissions from the plant.
A18: Biogenic fraction of waste feedstock (See Note 4)
B19: Yearly average biogenic percentage of the waste by net calorific value (NCV) | C19: % | D19: 0.4443
B20: Description of how biogenic percentage (by NCV) has been calculated or estimated. See Note 6 | C20: Calculated by BIOMA software using CEMS data. | F20: Note 6: If C14 sampling is carried out at the plant, the methodology set out in the embedded document entitled "Renewable Energy Association Energy Content of Fuels - Description of Method" embedded below can be used to calculate the biogenic percentage by net calorific value. Otherwise, data from waste sampling or BIOMA software can be used; or if none of these are available, an estimated figure with justification or a figure assumed on the basis of up-to-date industry data can be used.
B21: Yearly average biogenic percentage of the waste by mass | C21: % | D21: 0.4443
B22: If waste sampling undertaken, no. of samples used to ascertain average biogenic percentages above | C22: Number | D22: 12
B23: Description of how biogenic percentage (by mass) has been calculated or estimated. See Note 7 | F23: Note 7: Where available, data from waste sampling should be used; otherwise, an estimated figure with justification can be used, or a figure assumed on the basis of up-to-date industry data.
B25: Comments:

Sheet Residue Quality
A1: =+'Cover Page'!$B$29 -> Annual Performance Report 2024 | E1: =+'Cover Page'!$B$33 -> SELCHP
A3: Residue Quality Monitoring Requirements
A5: Summary of monitoring undertaken and compliance
A6: IBA - Two samples per month are analysed according to the ESA protocol
A8: APC - One sample per quarter is analysed as per permit requirements
A13: Commentary on any specific events
A14: Date & Event | C14: Description
A27: Residue Quality Monitoring Results
A28: Parameter (unit) | C28: Limit* | D28: Normal Operation
D29: Bottom ash | F29: APC Residues
A30: Loss on Ignition (average %) | C30: <5% | D30: -
A31: Total Organic Carbon (average %) | C31: <3% | D31: 1.5
A32: No. of Assessments Undertaken | C32: --- | D32: 24
A33: No. of Hazardous Results | C33: --- | D33: 0
A34: * The permit will specify a limit of either 5% loss on ignition or 3% total organic carbon. If both are measured anyway, please enter the results here, even where the limit does not apply.
A36: Comments :
C62: 9.245 | D62: 9.401 | E62: 9.358 | F62: 9.326

Sheet Water
A1: =+'Cover Page'!$B$29 -> Annual Performance Report 2024 | E1: =+'Cover Page'!$B$33 -> SELCHP
A3: Emissions to Water
A5: Summary of monitoring undertaken and compliance
A6: Water is only discharged off site to commercial sewer, in accordance with Thames Water's discharge consent requirements. There are no monitoring parameters set our in the permit. Although, monthly aggregate samples are sent for laboratory analysis against the discharge consent parameters.
A13: Commentary on any specific events
A14: Date & Event | C14: Description
A22: Emissions to Water / Sewer
A23: Parameter | D23: Monitoring Frequency | F23: Limit | G23: Target | H23: Max. | I23: Average
C62: 9.245 | D62: 9.401 | E62: 9.358 | F62: 9.326

Sheet Air (periodic)
A1: =+'Cover Page'!$B$29 -> Annual Performance Report 2024 | E1: =+'Cover Page'!$B$33 -> SELCHP
A3: Emissions to Air (periodically monitored)
A5: Summary of monitoring undertaken, standards used and compliance | K5: Notes:
A6: Bi-Annual monitoring. Standards used as applicable; EN 1948, EN 16911-1 (MID), EN 14792, EN 12619:2013, EN 15058, EN 14790, EN ISO 21258, EN 14789, EN 14791, MID 14385, EN 1911, ISO 11338, ISO 15713, EN 14385, EN 13284-1 | K6: Template may require adjustment for any bespoke monitoring requirements of permit - please also check that all default ELV values, reference periods and the stated oxygen reference value match those for your plant, and edit if necessary!
A9: Results of emissions to air that are periodically monitored - oxygen reference 11%
A10: Substance | C10: Ref. Period | D10: Emission Limit Value | F10: Average | K10: User to add additional tables as necessary, depending on whether quarterly or bi-annual reporting is required for the compliance year
F11: A1 | G11: A2 | H11: A3 | I11: A4 | J11: A5
A12: Hydrogen fluoride | C12: 1 hr | D12: 1 mg/m3 | F12: 0.031 | G12: 0.0355
A13: Cd and Tl and their compounds | C13: 0.5-8hrs | D13: 0.02 mg/m3 | F13: 0.0012 | G13: 0.0011
A14: Hg and its compounds | C14: 0.5-8hrs | D14: 0.02 mg/m3 | F14: 0.000455 | G14: 0.0014
A15: Sb, As, Pb, Cr, Co, Cu, Mn, Ni, V and their compounds | C15: 0.5-8hrs | D15: 0.3 mg/m3 | F15: 0.0275 | G15: 0.0175
A16: Dioxins & Furans (I-TEQ) | C16: 6-8hrs | D16: 0.06 ng/m3 | F16: 0.0141 | G16: 0.05555
A17: PCBs (WHO-TEQ Humans / Mammals) | C17: 6-8hrs | D17: None set ng/m3 | F17: 0.001975 | G17: 0.006648
A18: PCBs (WHO-TEQ Fish) | C18: 6-8hrs | D18: None set ng/m3 | F18: 9.5e-05 | G18: 0.000303
A19: PCBs (WHO-TEQ Birds) | C19: 6-8hrs | D19: None set ng/m3 | F19: 0.00419 | G19: 0.0109855
A20: Dioxins & Furans (WHO-TEQ Humans / Mammals) | C20: 6-8hrs | D20: None set ng/m3 | F20: 0.0135 | G20: 0.0565
A21: Dioxins & Furans (WHO-TEQ Fish) | C21: 6-8hrs | D21: None set ng/m3 | F21: 0.06725 | G21: 0.0568
A22: Dioxins & Furans (WHO-TEQ Birds) | C22: 6-8hrs | D22: None set ng/m3 | F22: 0.0218 | G22: 0.07925
A23: Anthanthrene | C23: 6-8hrs | D23: None set µg/m3 | F23: 0.0017 | G23: 0.0017
A24: Benzo(a)anthracene | C24: 6-8hrs | D24: None set µg/m3 | F24: 0.0017 | G24: 0.003
A25: Benzo(a)pyrene | C25: 6-8hrs | D25: None set µg/m3 | F25: 0.0017 | G25: 0.0017
A26: Benzo(b)fluoranthene | C26: 6-8hrs | D26: None set µg/m3 | F26: 0.0017 | G26: 0.0017
A27: Benzo(b)naptho(2,1-d) thiophene | C27: 6-8hrs | D27: None set µg/m3 | F27: 0.0017 | G27: 0.0017
A28: Benzo(c)phenanthrene | C28: 6-8hrs | D28: None set µg/m3 | F28: 0.0017 | G28: 0.0017
A29: Benzo(ghi)perylene | C29: 6-8hrs | D29: None set µg/m3 | F29: 0.0017 | G29: 0.0032
A30: Benzo(k)fluoranthene | C30: 6-8hrs | D30: None set µg/m3 | F30: 0.0017 | G30: 0.0017
A31: Cholanthrene | C31: 6-8hrs | D31: None set µg/m3 | F31: 0.0017 | G31: 0.0017
A32: Chrysene | C32: 6-8hrs | D32: None set µg/m3 | F32: 0.0019 | G32: 0.0038
A33: Cyclopenta(cd)pyrene | C33: 6-8hrs | D33: None set µg/m3 | F33: 0.0017 | G33: 0.0017
A34: Dibenzo(ai)pyrene | C34: 6-8hrs | D34: None set µg/m3 | F34: 0.0017 | G34: 0.0017
A35: Dibenzo(ah)anthracene | C35: 6-8hrs | D35: None set µg/m3 | F35: 0.0017 | G35: 0.0017
A36: Fluoranthene | C36: 6-8hrs | D36: None set µg/m3 | F36: 0.0252 | G36: 0.036
A37: Indeno(123-cd) pyrene | C37: 6-8hrs | D37: None set µg/m3 | F37: 0.0017 | G37: 0.0017
A38: Naphthalene | C38: 6-8hrs | D38: None set µg/m3 | F38: 0.1687 | G38: 0.1238
A39: Comments :
C62: 9.245 | D62: 9.401 | E62: 9.358 | F62: 9.326

Sheet Air (CEMS)
A1: =+'Cover Page'!$B$29 -> Annual Performance Report 2024 | I1: =+'Cover Page'!$B$33 -> SELCHP
A3: Emissions to Air (continuously monitored)
N4: Notes:
A5: Summary of monitoring undertaken, standards used and compliance | N5: Template may require adjustment for any bespoke monitoring requirements of permit
A6: Four MCERT cretified CEMS have been installed at the base of the Chimeney. Two duty, one for each combustion line and two standby for each combustion line. Extractive sampling heated lines smple the flues gases. Instuments; MIR-FT, FID, in flue electrified probe | N6: Please check that all default ELV values match those for your plant and edit if necessary!
N7: Report to 1 decimal place
A11: Results of emissions to air that are continuously monitored (maximum and average values for each line) - oxygen reference 11%
A12: Substance | B12: Reference Period | C12: Emission Limit Value | D12: A1 | F12: A2 | H12: A3 | J12: A4 | L12: A5
D13: Max. | E13: Avg. | F13: Max. | G13: Avg. | H13: Max. | I13: Avg. | J13: Max. | K13: Avg. | L13: Max. | M13: Avg.
A14: Oxides of nitrogen | B14: Daily mean | C14: 180 mg/m3 | D14: 178.1 | E14: 169.14 | F14: 176.04 | G14: 166.35
B15: ½ hourly mean | C15: 400 mg/m3 | D15: 252.34 | E15: 169.05 | F15: 269.64 | G15: 166.19
A16: Particulates | B16: Daily mean | C16: 5 mg/m3 | D16: 3.5 | E16: 1.49 | F16: 3.43 | G16: 1.5
B17: ½ hourly mean | C17: 30 mg/m3 | D17: 13.08 | E17: 1.71 | F17: 16.74 | G17: 1.72
A18: Total Organic Carbon | B18: Daily mean | C18: 10 mg/m3 | D18: 1.15 | E18: 0.7 | F18: 1.64 | G18: 0.55
B19: ½ hourly mean | C19: 20 mg/m3 | D19: 10.99 | E19: 0.7 | F19: 19.61 | G19: 0.56
A20: Hydrogen chloride | B20: Daily mean | C20: 8 mg/m3 | D20: 6.88 | E20: 5.17 | F20: 6.99 | G20: 5.16
B21: ½ hourly mean | C21: 60 mg/m3 | D21: 34.42 | E21: 5.19 | F21: 23.78 | G21: 5.18
A22: Sulphur dioxide | B22: Daily mean | C22: 40 mg/m3 | D22: 22.39 | E22: 10.54 | F22: 22.41 | G22: 11.98
B23: ½ hourly mean | C23: 200 mg/m3 | D23: 83.43 | E23: 10.56 | F23: 122.22 | G23: 11.96
A24: Carbon monoxide | B24: Daily mean | C24: 50 mg/m3 | D24: 22.16 | E24: 8.74 | F24: 21.22 | G24: 3.96
B25: 95%ile 10-min avg * | C25: 150 mg/m3 * | D25: 83.89 | E25: 51.55 | F25: 34.54 | G25: 18.11
A26: Ammonia | B26: Daily mean | C26: 15 mg/m3 | D26: 12.9 | E26: 6.98 | F26: 11.14 | G26: 3.82
A27: * = delete as appropriate, depending on whether your plant has half-hourly or 10-min CO ELVs
A28: Comments :
C62: 9.245 | D62: 9.401 | E62: 9.358 | F62: 9.326

Sheet HCl
A1: =+'Cover Page'!$B$29 -> Annual Performance Report 2024 | E1: =+'Cover Page'!$B$33 -> SELCHP
A3: Monitoring of Hydrogen Chloride emissions | D3: Whole Installation | G3: See Notes in Cell Q3 | J3: =+A3 -> Monitoring of Hydrogen Chloride emissions | N3: Per Combustion Line | Q3: Notes:
Q4: User to add logic to complete Whole installation, Table A5:G18. From the data in Per Combustion Line, Table J6:O79, subject to No. of lines installed
A5: =+'Cover Page'!C39 -> 2024 | B5: 1/2 Hourly Reference Periods | E5: Daily Reference Periods
A6: mg/Nm3 | B6: 1/2 hourly HCl ELV | C6: Monthly mean of half-hourly averages | D6: Highest half- hourly average | E6: Daily HCl ELV | F6: Monthly mean of daily averages | G6: Highest daily average | J6: =+A5 -> 2024 | K6: mg/Nm3 | L6: Monthly mean of half-hourly averages | M6: Highest half- hourly average | N6: Monthly mean of daily averages | O6: Highest daily average
A7: Jan | B7: 60 | C7: 5.12 | D7: 15.5 | E7: 8 | F7: 5.12 | G7: 6.67 | J7: A1 | K7: Jan | L7: 4.89 | M7: 12.68 | N7: 4.89 | O7: 5.97
A8: Feb | B8: 60 | C8: 5.1 | D8: 23.44 | E8: 8 | F8: 5.11 | G8: 6.48 | K8: Feb | L8: 4.76 | M8: 21.02 | N8: 4.77 | O8: 5.97
A9: Mar | B9: 60 | C9: 4.39 | D9: 21.93 | E9: 8 | F9: 4.39 | G9: 6 | K9: Mar | L9: 4.83 | M9: 15.25 | N9: 4.82 | O9: 6 | Q9: Whole Installation table A5:G18:
A10: Apr | B10: 60 | C10: 5.34 | D10: 23.78 | E10: 8 | F10: 5.37 | G10: 6.7 | K10: Apr | L10: 5.39 | M10: 21.06 | N10: 5.46 | O10: 6.7 | Q10: Mean: for 1/2 hourly and daily periods calculate mean of values across all operational combustion lines for the month
A11: May | B11: 60 | C11: 5.62 | D11: 18.85 | E11: 8 | F11: 5.62 | G11: 6.83 | K11: May | L11: 5.85 | M11: 17.23 | N11: 5.84 | O11: 6.83
A12: Jun | B12: 60 | C12: 5.43 | D12: 20.83 | E12: 8 | F12: 5.46 | G12: 6.44 | K12: Jun | L12: 5.51 | M12: 15.74 | N12: 5.55 | O12: 6.44
A13: Jul | B13: 60 | C13: 4.76 | D13: 15.09 | E13: 8 | F13: 4.79 | G13: 5.91 | K13: Jul | L13: 5.02 | M13: 15.09 | N13: 5.02 | O13: 5.91 | Q13: Maximum: for 1/2 hourly and daily periods use the highest value across all operational combustion lines for the month
A14: Aug | B14: 60 | C14: 5.32 | D14: 21.8 | E14: 8 | F14: 5.32 | G14: 6.99 | K14: Aug | L14: 5.18 | M14: 18.24 | N14: 5.18 | O14: 6.09
A15: Sep | B15: 60 | C15: 5.61 | D15: 34.42 | E15: 8 | F15: 5.63 | G15: 6.88 | K15: Sep | L15: 5.45 | M15: 34.42 | N15: 5.48 | O15: 6.88
A16: Oct | B16: 60 | C16: 5.07 | D16: 15.39 | E16: 8 | F16: 5.09 | G16: 6.14 | K16: Oct | L16: 5.09 | M16: 15.39 | N16: 5.09 | O16: 6.05
A17: Nov | B17: 60 | C17: 5.13 | D17: 17.29 | E17: 8 | F17: 5.13 | G17: 6.62 | K17: Nov | L17: 4.93 | M17: 15.3 | N17: 4.92 | O17: 6.62
A18: Dec | B18: 60 | C18: 5.16 | D18: 15.29 | E18: 8 | F18: 5.17 | G18: 6.46 | K18: Dec | L18: 5.02 | M18: 12.12 | N18: 5.01 | O18: 6.03
K19: Annual | L19: =AVERAGE(L7:L18) -> 5.16 | M19: =MAX(M7:M18) -> 34.42 | N19: =AVERAGE(N7:N18) -> 5.169166667 | O19: =MAX(O7:O18) -> 6.88
J21: =+A5 -> 2024 | K21: mg/Nm3 | L21: Monthly mean of half-hourly averages | M21: Highest half- hourly average | N21: Monthly mean of daily averages | O21: Highest daily average
J22: A2 | K22: Jan | L22: 5.35 | M22: 15.5 | N22: 5.35 | O22: 6.67
K23: Feb | L23: 5.46 | M23: 23.44 | N23: 5.49 | O23: 6.48
K24: Mar | L24: 3.98 | M24: 21.93 | N24: 3.98 | O24: 5.89
K25: Apr | L25: 5.29 | M25: 23.78 | N25: 5.28 | O25: 6.42
K26: May | L26: 5.39 | M26: 18.85 | N26: 5.39 | O26: 6.56
K27: Jun | L27: 5.39 | M27: 20.83 | N27: 5.4 | O27: 6.34
K28: Jul | L28: 4.33 | M28: 10.54 | N28: 4.42 | O28: 5.56
K29: Aug | L29: 5.45 | M29: 21.8 | N29: 5.45 | O29: 6.99
K30: Sep | L30: 5.76 | M30: 16.28 | N30: 5.76 | O30: 6.69
K31: Oct | L31: 5.06 | M31: 14.05 | N31: 5.08 | O31: 6.14
K32: Nov | L32: 5.34 | M32: 17.29 | N32: 5.34 | O32: 6.6
K33: Dec | L33: 5.32 | M33: 15.29 | N33: 5.36 | O33: 6.46
K34: Annual | L34: =AVERAGE(L22:L33) -> 5.176666667 | M34: =MAX(M22:M33) -> 23.78 | N34: =AVERAGE(N22:N33) -> 5.191666667 | O34: =MAX(O22:O33) -> 6.99
J36: =+A5 -> 2024 | K36: mg/Nm3 | L36: Monthly mean of half-hourly averages | M36: Highest half- hourly average | N36: Monthly mean of daily averages | O36: Highest daily average
J37: A3 | K37: Jan
K38: Feb
K39: Mar
K40: Apr
K41: May
K42: Jun
K43: Jul
K44: Aug
K45: Sep
K46: Oct
K47: Nov
A48: Comments : | K48: Dec
K49: Annual | L49: =AVERAGE(L37:L48) -> #DIV/0! | M49: =MAX(M37:M48) -> 0 | N49: =AVERAGE(N37:N48) -> #DIV/0! | O49: =MAX(O37:O48) -> 0
J51: =+A5 -> 2024 | K51: mg/Nm3 | L51: Monthly mean of half-hourly averages | M51: Highest half- hourly average | N51: Monthly mean of daily averages | O51: Highest daily average
J52: A4 | K52: Jan
K53: Feb
K54: Mar
K55: Apr
K56: May
K57: Jun
K58: Jul
K59: Aug
K60: Sep
K61: Oct
C62: 9.245 | D62: 9.401 | E62: 9.358 | F62: 9.326 | K62: Nov
K63: Dec
K64: Annual | L64: =AVERAGE(L52:L63) -> #DIV/0! | M64: =MAX(M52:M63) -> 0 | N64: =AVERAGE(N52:N63) -> #DIV/0! | O64: =MAX(O52:O63) -> 0
J66: =+A5 -> 2024 | K66: mg/Nm3 | L66: Monthly mean of half-hourly averages | M66: Highest half- hourly average | N66: Monthly mean of daily averages | O66: Highest daily average
J67: A5 | K67: Jan
K68: Feb
K69: Mar
K70: Apr
K71: May
K72: Jun
K73: Jul
K74: Aug
K75: Sep
K76: Oct
K77: Nov
K78: Dec
K79: Annual | L79: =AVERAGE(L67:L78) -> #DIV/0! | M79: =MAX(M67:M78) -> 0 | N79: =AVERAGE(N67:N78) -> #DIV/0! | O79: =MAX(O67:O78) -> 0

Sheet SO2
A1: =+'Cover Page'!$B$29 -> Annual Performance Report 2024 | E1: =+'Cover Page'!$B$33 -> SELCHP
A3: Monitoring of Sulphur dioxide emissions | D3: Whole Installation | G3: See Notes in Cell Q3 | J3: =+A3 -> Monitoring of Sulphur dioxide emissions | N3: Per Combustion Line | Q3: Notes:
Q4: User to add logic to complete Whole installation, Table A5:G18. From the data in Per Combustion Line, Table J6:O79, subject to No. of lines installed
A5: =+'Cover Page'!C39 -> 2024 | B5: 1/2 Hourly Reference Periods | E5: Daily Reference Periods
A6: mg/Nm3 | B6: 1/2 hourly SO2 ELV | C6: Monthly mean of half-hourly averages | D6: Highest half- hourly average | E6: Daily SO2 ELV | F6: Monthly mean of daily averages | G6: Highest daily average | J6: =+A5 -> 2024 | K6: mg/Nm3 | L6: Monthly mean of half-hourly averages | M6: Highest half- hourly average | N6: Monthly mean of daily averages | O6: Highest daily average
A7: Jan | B7: 200 | C7: 13.44 | D7: 42.05 | E7: 40 | F7: 13.44 | G7: 19.41 | J7: A1 | K7: Jan | L7: 16.31 | M7: 42.05 | N7: 16.31 | O7: 19.41
A8: Feb | B8: 200 | C8: 13.98 | D8: 83.43 | E8: 40 | F8: 13.92 | G8: 19.86 | K8: Feb | L8: 17.95 | M8: 83.43 | N8: 17.75 | O8: 19.86
A9: Mar | B9: 200 | C9: 16.29 | D9: 73.12 | E9: 40 | F9: 16.27 | G9: 22.39 | K9: Mar | L9: 17.63 | M9: 49.97 | N9: 17.62 | O9: 22.39 | Q9: Whole Installation table A5:G18:
A10: Apr | B10: 200 | C10: 8.33 | D10: 44.28 | E10: 40 | F10: 8.35 | G10: 18.62 | K10: Apr | L10: 7.27 | M10: 32.08 | N10: 7.26 | O10: 18.62 | Q10: Mean: for 1/2 hourly and daily periods calculate mean of values across all operational combustion lines for the month
A11: May | B11: 200 | C11: 10.04 | D11: 83.05 | E11: 40 | F11: 10.04 | G11: 15.21 | K11: May | L11: 7.83 | M11: 83.05 | N11: 7.83 | O11: 11.94
A12: Jun | B12: 200 | C12: 9.99 | D12: 122.22 | E12: 40 | F12: 9.94 | G12: 14.91 | K12: Jun | L12: 7.97 | M12: 60.6 | N12: 7.95 | O12: 12.87
A13: Jul | B13: 200 | C13: 8.82 | D13: 50.42 | E13: 40 | F13: 8.89 | G13: 22.41 | K13: Jul | L13: 6.07 | M13: 39.09 | N13: 5.89 | O13: 9.8 | Q13: Maximum: for 1/2 hourly and daily periods use the highest value across all operational combustion lines for the month
A14: Aug | B14: 200 | C14: 9.16 | D14: 51.44 | E14: 40 | F14: 9.11 | G14: 17.19 | K14: Aug | L14: 5.13 | M14: 34.16 | N14: 5.23 | O14: 7.71
A15: Sep | B15: 200 | C15: 8.87 | D15: 57.35 | E15: 40 | F15: 8.94 | G15: 14.66 | K15: Sep | L15: 5.37 | M15: 57.35 | N15: 5.44 | O15: 9.9
A16: Oct | B16: 200 | C16: 10.38 | D16: 76.53 | E16: 40 | F16: 10.42 | G16: 17.73 | K16: Oct | L16: 8.98 | M16: 41 | N16: 8.98 | O16: 17.73
A17: Nov | B17: 200 | C17: 11.02 | D17: 46.03 | E17: 40 | F17: 11.02 | G17: 19 | K17: Nov | L17: 10.84 | M17: 46.03 | N17: 10.84 | O17: 19
A18: Dec | B18: 200 | C18: 14.66 | D18: 40.95 | E18: 40 | F18: 14.65 | G18: 19.94 | K18: Dec | L18: 15.34 | M18: 40.95 | N18: 15.34 | O18: 19.94
K19: Annual | L19: =AVERAGE(L7:L18) -> 10.5575 | M19: =MAX(M7:M18) -> 83.43 | N19: =AVERAGE(N7:N18) -> 10.53666667 | O19: =MAX(O7:O18) -> 22.39
J21: =+A5 -> 2024 | K21: mg/Nm3 | L21: Monthly mean of half-hourly averages | M21: Highest half- hourly average | N21: Monthly mean of daily averages | O21: Highest daily average
J22: A2 | K22: Jan | L22: 10.58 | M22: 33.36 | N22: 10.58 | O22: 13.71
K23: Feb | L23: 9.73 | M23: 72.17 | N23: 9.79 | O23: 16.07
K24: Mar | L24: 15.03 | M24: 73.12 | N24: 15.02 | O24: 21.35
K25: Apr | L25: 9.4 | M25: 44.28 | N25: 9.4 | O25: 13.43
K26: May | L26: 12.25 | M26: 54.53 | N26: 12.25 | O26: 15.21
K27: Jun | L27: 11.13 | M27: 122.22 | N27: 11.08 | O27: 14.91
K28: Jul | L28: 13.42 | M28: 50.42 | N28: 13.69 | O28: 22.41
K29: Aug | L29: 12.85 | M29: 51.44 | N29: 12.71 | O29: 17.19
K30: Sep | L30: 12.09 | M30: 33.66 | N30: 12.09 | O30: 14.66
K31: Oct | L31: 11.93 | M31: 76.53 | N31: 12.07 | O31: 17.67
K32: Nov | L32: 11.2 | M32: 36.82 | N32: 11.2 | O32: 15.39
K33: Dec | L33: 13.9 | M33: 39.18 | N33: 13.83 | O33: 17.86
K34: Annual | L34: =AVERAGE(L22:L33) -> 11.95916667 | M34: =MAX(M22:M33) -> 122.22 | N34: =AVERAGE(N22:N33) -> 11.97583333 | O34: =MAX(O22:O33) -> 22.41
J36: =+A5 -> 2024 | K36: mg/Nm3 | L36: Monthly mean of half-hourly averages | M36: Highest half- hourly average | N36: Monthly mean of daily averages | O36: Highest daily average
J37: A3 | K37: Jan
K38: Feb
K39: Mar
K40: Apr
K41: May
K42: Jun
K43: Jul
K44: Aug
K45: Sep
K46: Oct
K47: Nov
A48: Comments : | K48: Dec
K49: Annual | L49: =AVERAGE(L37:L48) -> #DIV/0! | M49: =MAX(M37:M48) -> 0 | N49: =AVERAGE(N37:N48) -> #DIV/0! | O49: =MAX(O37:O48) -> 0
J51: =+A5 -> 2024 | K51: mg/Nm3 | L51: Monthly mean of half-hourly averages | M51: Highest half- hourly average | N51: Monthly mean of daily averages | O51: Highest daily average
J52: A4 | K52: Jan
K53: Feb
K54: Mar
K55: Apr
K56: May
K57: Jun
K58: Jul
K59: Aug
K60: Sep
K61: Oct
C62: 9.245 | D62: 9.401 | E62: 9.358 | F62: 9.326 | K62: Nov
K63: Dec
K64: Annual | L64: =AVERAGE(L52:L63) -> #DIV/0! | M64: =MAX(M52:M63) -> 0 | N64: =AVERAGE(N52:N63) -> #DIV/0! | O64: =MAX(O52:O63) -> 0
J66: =+A5 -> 2024 | K66: mg/Nm3 | L66: Monthly mean of half-hourly averages | M66: Highest half- hourly average | N66: Monthly mean of daily averages | O66: Highest daily average
J67: A5 | K67: Jan
K68: Feb
K69: Mar
K70: Apr
K71: May
K72: Jun
K73: Jul
K74: Aug
K75: Sep
K76: Oct
K77: Nov
K78: Dec
K79: Annual | L79: =AVERAGE(L67:L78) -> #DIV/0! | M79: =MAX(M67:M78) -> 0 | N79: =AVERAGE(N67:N78) -> #DIV/0! | O79: =MAX(O67:O78) -> 0

Sheet NOx
A1: =+'Cover Page'!$B$29 -> Annual Performance Report 2024 | E1: =+'Cover Page'!$B$33 -> SELCHP
A3: Monitoring of Oxides of Nitrogen emissions | D3: Whole Installation | G3: See Notes in Cell Q3 | J3: =+A3 -> Monitoring of Oxides of Nitrogen emissions | N3: Per Combustion Line | Q3: Notes:
Q4: User to add logic to complete Whole installation, Table A5:G18. From the data in Per Combustion Line, Table J6:O79, subject to No. of lines installed
A5: =+'Cover Page'!C39 -> 2024 | B5: 1/2 Hourly Reference Periods | E5: Daily Reference Periods
A6: mg/Nm3 | B6: 1/2 hourly NOx ELV | C6: Monthly mean of half-hourly averages | D6: Highest half- hourly average | E6: Daily NOx ELV | F6: Monthly mean of daily averages | G6: Highest daily average | J6: =+A5 -> 2024 | K6: mg/Nm3 | L6: Monthly mean of half-hourly averages | M6: Highest half- hourly average | N6: Monthly mean of daily averages | O6: Highest daily average
A7: Jan | B7: 400 | C7: 168.24 | D7: 228.86 | E7: 180 | F7: 168.23 | G7: 175.98 | J7: A1 | K7: Jan | L7: 170.7 | M7: 228.86 | N7: 170.7 | O7: 175.98
A8: Feb | B8: 400 | C8: 168.81 | D8: 249.62 | E8: 180 | F8: 168.94 | G8: 177.34 | K8: Feb | L8: 169.91 | M8: 249.62 | N8: 170 | O8: 177.34
A9: Mar | B9: 400 | C9: 166.85 | D9: 229.28 | E9: 180 | F9: 166.87 | G9: 175.61 | K9: Mar | L9: 168.97 | M9: 229.28 | N9: 169.01 | O9: 175.36 | Q9: Whole Installation table A5:G18:
A10: Apr | B10: 400 | C10: 169.89 | D10: 269.64 | E10: 180 | F10: 170.07 | G10: 176.49 | K10: Apr | L10: 171.06 | M10: 223.42 | N10: 171.53 | O10: 176.49 | Q10: Mean: for 1/2 hourly and daily periods calculate mean of values across all operational combustion lines for the month
A11: May | B11: 400 | C11: 170.46 | D11: 238.71 | E11: 180 | F11: 170.46 | G11: 178.1 | K11: May | L11: 171.76 | M11: 238.71 | N11: 171.76 | O11: 178.1
A12: Jun | B12: 400 | C12: 165.99 | D12: 219.46 | E12: 180 | F12: 166.55 | G12: 176.04 | K12: Jun | L12: 167.91 | M12: 219.46 | N12: 168.25 | O12: 175.3
A13: Jul | B13: 400 | C13: 168.42 | D13: 248.09 | E13: 180 | F13: 168.38 | G13: 175.12 | K13: Jul | L13: 169.12 | M13: 248.09 | N13: 168.95 | O13: 175.12 | Q13: Maximum: for 1/2 hourly and daily periods use the highest value across all operational combustion lines for the month
A14: Aug | B14: 400 | C14: 166.85 | D14: 236.14 | E14: 180 | F14: 167.15 | G14: 175.09 | K14: Aug | L14: 169.53 | M14: 236.14 | N14: 169.73 | O14: 175.09
A15: Sep | B15: 400 | C15: 166.91 | D15: 242.68 | E15: 180 | F15: 166.96 | G15: 175.72 | K15: Sep | L15: 168.03 | M15: 236.2 | N15: 168.18 | O15: 174.31
A16: Oct | B16: 400 | C16: 163.86 | D16: 252.34 | E16: 180 | F16: 164.03 | G16: 172.41 | K16: Oct | L16: 166.19 | M16: 252.34 | N16: 166.19 | O16: 172.41
A17: Nov | B17: 400 | C17: 167.15 | D17: 248.51 | E17: 180 | F17: 167.15 | G17: 176.6 | K17: Nov | L17: 166.71 | M17: 248.51 | N17: 166.71 | O17: 176.6
A18: Dec | B18: 400 | C18: 167.76 | D18: 248.83 | E18: 180 | F18: 167.96 | G18: 178.01 | K18: Dec | L18: 168.68 | M18: 248.83 | N18: 168.67 | O18: 178.01
K19: Annual | L19: =AVERAGE(L7:L18) -> 169.0475 | M19: =MAX(M7:M18) -> 252.34 | N19: =AVERAGE(N7:N18) -> 169.14 | O19: =MAX(O7:O18) -> 178.1
J21: =+A5 -> 2024 | K21: mg/Nm3 | L21: Monthly mean of half-hourly averages | M21: Highest half- hourly average | N21: Monthly mean of daily averages | O21: Highest daily average
J22: A2 | K22: Jan | L22: 165.77 | M22: 212.09 | N22: 165.77 | O22: 172.31
K23: Feb | L23: 167.64 | M23: 226.08 | N23: 167.79 | O23: 173.99
K24: Mar | L24: 164.86 | M24: 223.59 | N24: 164.87 | O24: 175.61
K25: Apr | L25: 168.72 | M25: 269.64 | N25: 168.66 | O25: 174.81
K26: May | L26: 169.17 | M26: 229.91 | N26: 169.17 | O26: 175.06
K27: Jun | L27: 164.9 | M27: 214.8 | N27: 165.57 | O27: 176.04
K28: Jul | L28: 167.25 | M28: 201.16 | N28: 167.46 | O28: 175.05
K29: Aug | L29: 164.39 | M29: 227.76 | N29: 164.76 | O29: 171.62
K30: Sep | L30: 165.86 | M30: 242.68 | N30: 165.86 | O30: 175.72
K31: Oct | L31: 161.3 | M31: 241.91 | N31: 161.55 | O31: 171.95
K32: Nov | L32: 167.59 | M32: 230.94 | N32: 167.59 | O32: 174.64
K33: Dec | L33: 166.72 | M33: 228.24 | N33: 167.11 | O33: 175.15
K34: Annual | L34: =AVERAGE(L22:L33) -> 166.1808333 | M34: =MAX(M22:M33) -> 269.64 | N34: =AVERAGE(N22:N33) -> 166.3466667 | O34: =MAX(O22:O33) -> 176.04
J36: =+A5 -> 2024 | K36: mg/Nm3 | L36: Monthly mean of half-hourly averages | M36: Highest half- hourly average | N36: Monthly mean of daily averages | O36: Highest daily average
J37: A3 | K37: Jan
K38: Feb
K39: Mar
K40: Apr
K41: May
K42: Jun
K43: Jul
K44: Aug
K45: Sep
K46: Oct
K47: Nov
A48: Comments : | K48: Dec
K49: Annual | L49: =AVERAGE(L37:L48) -> #DIV/0! | M49: =MAX(M37:M48) -> 0 | N49: =AVERAGE(N37:N48) -> #DIV/0! | O49: =MAX(O37:O48) -> 0
J51: =+A5 -> 2024 | K51: mg/Nm3 | L51: Monthly mean of half-hourly averages | M51: Highest half- hourly average | N51: Monthly mean of daily averages | O51: Highest daily average
J52: A4 | K52: Jan
K53: Feb
K54: Mar
K55: Apr
K56: May
K57: Jun
K58: Jul
K59: Aug
K60: Sep
K61: Oct
C62: 9.245 | D62: 9.401 | E62: 9.358 | F62: 9.326 | K62: Nov
K63: Dec
K64: Annual | L64: =AVERAGE(L52:L63) -> #DIV/0! | M64: =MAX(M52:M63) -> 0 | N64: =AVERAGE(N52:N63) -> #DIV/0! | O64: =MAX(O52:O63) -> 0
J66: =+A5 -> 2024 | K66: mg/Nm3 | L66: Monthly mean of half-hourly averages | M66: Highest half- hourly average | N66: Monthly mean of daily averages | O66: Highest daily average
J67: A5 | K67: Jan
K68: Feb
K69: Mar
K70: Apr
K71: May
K72: Jun
K73: Jul
K74: Aug
K75: Sep
K76: Oct
K77: Nov
K78: Dec
K79: Annual | L79: =AVERAGE(L67:L78) -> #DIV/0! | M79: =MAX(M67:M78) -> 0 | N79: =AVERAGE(N67:N78) -> #DIV/0! | O79: =MAX(O67:O78) -> 0

Sheet TOC
A1: =+'Cover Page'!$B$29 -> Annual Performance Report 2024 | E1: =+'Cover Page'!$B$33 -> SELCHP
A3: Monitoring of Total organic carbon emissions | D3: Whole Installation | G3: See Notes in Cell Q3 | J3: =+A3 -> Monitoring of Total organic carbon emissions | N3: Per Combustion Line | Q3: Notes:
Q4: User to add logic to complete Whole installation, Table A5:G18. From the data in Per Combustion Line, Table J6:O79, subject to No. of lines installed
A5: =+'Cover Page'!C39 -> 2024 | B5: 1/2 Hourly Reference Periods | E5: Daily Reference Periods
A6: mg/Nm3 | B6: 1/2 hourly TOC ELV | C6: Monthly mean of half-hourly averages | D6: Highest half- hourly average | E6: Daily TOC ELV | F6: Monthly mean of daily averages | G6: Highest daily average | J6: =+A5 -> 2024 | K6: mg/Nm3 | L6: Monthly mean of half-hourly averages | M6: Highest half- hourly average | N6: Monthly mean of daily averages | O6: Highest daily average
A7: Jan | B7: 20 | C7: 0.38 | D7: 7.51 | E7: 10 | F7: 0.38 | G7: 0.92 | J7: A1 | K7: Jan | L7: 0.73 | M7: 6.13 | N7: 0.73 | O7: 0.92
A8: Feb | B8: 20 | C8: 0.59 | D8: 8.01 | E8: 10 | F8: 0.58 | G8: 1.64 | K8: Feb | L8: 0.75 | M8: 6.29 | N8: 0.75 | O8: 0.85
A9: Mar | B9: 20 | C9: 0.78 | D9: 9.43 | E9: 10 | F9: 0.78 | G9: 1.17 | K9: Mar | L9: 0.72 | M9: 5.82 | N9: 0.71 | O9: 0.95 | Q9: Whole Installation table A5:G18:
A10: Apr | B10: 20 | C10: 0.3 | D10: 6.54 | E10: 10 | F10: 0.29 | G10: 0.85 | K10: Apr | L10: 0.51 | M10: 6.54 | N10: 0.5 | O10: 0.85 | Q10: Mean: for 1/2 hourly and daily periods calculate mean of values across all operational combustion lines for the month
A11: May | B11: 20 | C11: 0.6 | D11: 6.91 | E11: 10 | F11: 0.6 | G11: 0.98 | K11: May | L11: 0.65 | M11: 6.32 | N11: 0.65 | O11: 0.98
A12: Jun | B12: 20 | C12: 0.72 | D12: 19.61 | E12: 10 | F12: 0.7 | G12: 1.54 | K12: Jun | L12: 0.69 | M12: 6.52 | N12: 0.7 | O12: 0.87
A13: Jul | B13: 20 | C13: 0.85 | D13: 10.99 | E13: 10 | F13: 0.84 | G13: 1.3 | K13: Jul | L13: 0.86 | M13: 10.99 | N13: 0.83 | O13: 1.15 | Q13: Maximum: for 1/2 hourly and daily periods use the highest value across all operational combustion lines for the month
A14: Aug | B14: 20 | C14: 0.77 | D14: 5.96 | E14: 10 | F14: 0.75 | G14: 1.24 | K14: Aug | L14: 0.77 | M14: 5.96 | N14: 0.76 | O14: 1.02
A15: Sep | B15: 20 | C15: 0.67 | D15: 7.56 | E15: 10 | F15: 0.67 | G15: 0.85 | K15: Sep | L15: 0.71 | M15: 5.8 | N15: 0.7 | O15: 0.85
A16: Oct | B16: 20 | C16: 0.59 | D16: 10.21 | E16: 10 | F16: 0.58 | G16: 1.35 | K16: Oct | L16: 0.67 | M16: 5.74 | N16: 0.67 | O16: 1.15
A17: Nov | B17: 20 | C17: 0.68 | D17: 7.41 | E17: 10 | F17: 0.68 | G17: 1.05 | K17: Nov | L17: 0.73 | M17: 7.41 | N17: 0.73 | O17: 1.05
A18: Dec | B18: 20 | C18: 0.62 | D18: 4.81 | E18: 10 | F18: 0.62 | G18: 0.79 | K18: Dec | L18: 0.66 | M18: 4.81 | N18: 0.66 | O18: 0.79
K19: Annual | L19: =AVERAGE(L7:L18) -> 0.7041666667 | M19: =MAX(M7:M18) -> 10.99 | N19: =AVERAGE(N7:N18) -> 0.6991666667 | O19: =MAX(O7:O18) -> 1.15
J21: =+A5 -> 2024 | K21: mg/Nm3 | L21: Monthly mean of half-hourly averages | M21: Highest half- hourly average | N21: Monthly mean of daily averages | O21: Highest daily average
J22: A2 | K22: Jan | L22: 0.04 | M22: 7.51 | N22: 0.04 | O22: 0.35
K23: Feb | L23: 0.42 | M23: 8.01 | N23: 0.41 | O23: 1.64
K24: Mar | L24: 0.84 | M24: 9.43 | N24: 0.84 | O24: 1.17
K25: Apr | L25: 0.09 | M25: 3.74 | N25: 0.09 | O25: 0.76
K26: May | L26: 0.55 | M26: 6.91 | N26: 0.55 | O26: 0.7
K27: Jun | L27: 0.74 | M27: 19.61 | N27: 0.7 | O27: 1.54
K28: Jul | L28: 0.85 | M28: 7.38 | N28: 0.86 | O28: 1.3
K29: Aug | L29: 0.77 | M29: 5.95 | N29: 0.74 | O29: 1.24
K30: Sep | L30: 0.64 | M30: 7.56 | N30: 0.64 | O30: 0.74
K31: Oct | L31: 0.5 | M31: 10.21 | N31: 0.48 | O31: 1.35
K32: Nov | L32: 0.64 | M32: 3.71 | N32: 0.64 | O32: 0.97
K33: Dec | L33: 0.58 | M33: 3.02 | N33: 0.57 | O33: 0.66
K34: Annual | L34: =AVERAGE(L22:L33) -> 0.555 | M34: =MAX(M22:M33) -> 19.61 | N34: =AVERAGE(N22:N33) -> 0.5466666667 | O34: =MAX(O22:O33) -> 1.64
J36: =+A5 -> 2024 | K36: mg/Nm3 | L36: Monthly mean of half-hourly averages | M36: Highest half- hourly average | N36: Monthly mean of daily averages | O36: Highest daily average
J37: A3 | K37: Jan
K38: Feb
K39: Mar
K40: Apr
K41: May
K42: Jun
K43: Jul
K44: Aug
K45: Sep
K46: Oct
K47: Nov
A48: Comments : | K48: Dec
K49: Annual | L49: =AVERAGE(L37:L48) -> #DIV/0! | M49: =MAX(M37:M48) -> 0 | N49: =AVERAGE(N37:N48) -> #DIV/0! | O49: =MAX(O37:O48) -> 0
J51: =+A5 -> 2024 | K51: mg/Nm3 | L51: Monthly mean of half-hourly averages | M51: Highest half- hourly average | N51: Monthly mean of daily averages | O51: Highest daily average
J52: A4 | K52: Jan
K53: Feb
K54: Mar
K55: Apr
K56: May
K57: Jun
K58: Jul
K59: Aug
K60: Sep
K61: Oct
C62: 9.245 | D62: 9.401 | E62: 9.358 | F62: 9.326 | K62: Nov
K63: Dec
K64: Annual | L64: =AVERAGE(L52:L63) -> #DIV/0! | M64: =MAX(M52:M63) -> 0 | N64: =AVERAGE(N52:N63) -> #DIV/0! | O64: =MAX(O52:O63) -> 0
J66: =+A5 -> 2024 | K66: mg/Nm3 | L66: Monthly mean of half-hourly averages | M66: Highest half- hourly average | N66: Monthly mean of daily averages | O66: Highest daily average
J67: A5 | K67: Jan
K68: Feb
K69: Mar
K70: Apr
K71: May
K72: Jun
K73: Jul
K74: Aug
K75: Sep
K76: Oct
K77: Nov
K78: Dec
K79: Annual | L79: =AVERAGE(L67:L78) -> #DIV/0! | M79: =MAX(M67:M78) -> 0 | N79: =AVERAGE(N67:N78) -> #DIV/0! | O79: =MAX(O67:O78) -> 0

Sheet Particulates
A1: =+'Cover Page'!$B$29 -> Annual Performance Report 2024 | E1: =+'Cover Page'!$B$33 -> SELCHP
A3: Monitoring of Particulate matter emissions | D3: Whole Installation | G3: See Notes in Cell Q3 | J3: =+A3 -> Monitoring of Particulate matter emissions | N3: Per Combustion Line | Q3: Notes:
A5: =+'Cover Page'!C39 -> 2024 | B5: 1/2 Hourly Reference Periods | E5: Daily Reference Periods | Q5: User to add logic to complete Whole installation, Table A5:G18. From the data in Per Combustion Line, Table J6:O79, subject to No. of lines installed
A6: mg/Nm3 | B6: 1/2 hourly PM ELV | C6: Monthly mean of half-hourly averages | D6: Highest half- hourly average | E6: Daily PM ELV | F6: Monthly mean of daily averages | G6: Highest daily average | J6: =+A5 -> 2024 | K6: mg/Nm3 | L6: Monthly mean of half-hourly averages | M6: Highest half- hourly average | N6: Monthly mean of daily averages | O6: Highest daily average
A7: Jan | B7: 30 | C7: 1.64 | D7: 8.86 | E7: 5 | F7: 1.64 | G7: 2.65 | J7: A1 | K7: Jan | L7: 1.72 | M7: 4.16 | N7: 1.72 | O7: 2.53
A8: Feb | B8: 30 | C8: 1.59 | D8: 6.39 | E8: 5 | F8: 1.59 | G8: 2.23 | K8: Feb | L8: 1.54 | M8: 4.08 | N8: 1.54 | O8: 2.23
A9: Mar | B9: 30 | C9: 1.83 | D9: 5.92 | E9: 5 | F9: 1.83 | G9: 2.87 | K9: Mar | L9: 1.66 | M9: 5.92 | N9: 1.66 | O9: 2.87
A10: Apr | B10: 30 | C10: 1.99 | D10: 5.26 | E10: 5 | F10: 1.99 | G10: 2.71 | K10: Apr | L10: 2.01 | M10: 5.26 | N10: 2.01 | O10: 2.71 | Q10: Whole Installation table A5:G18:
A11: May | B11: 30 | C11: 2.08 | D11: 6.65 | E11: 5 | F11: 2.08 | G11: 3.5 | K11: May | L11: 2.2 | M11: 6.65 | N11: 2.2 | O11: 3.5 | Q11: Mean: for 1/2 hourly and daily periods calculate mean of values across all operational combustion lines for the month
A12: Jun | B12: 30 | C12: 1.79 | D12: 13.73 | E12: 5 | F12: 1.7 | G12: 3.15 | K12: Jun | L12: 2.13 | M12: 4.54 | N12: 2.12 | O12: 3.15
A13: Jul | B13: 30 | C13: 1.45 | D13: 13.08 | E13: 5 | F13: 1.44 | G13: 3.43 | K13: Jul | L13: 1.18 | M13: 13.08 | N13: 1.16 | O13: 3.07
A14: Aug | B14: 30 | C14: 1.23 | D14: 5.06 | E14: 5 | F14: 1.22 | G14: 2.27 | K14: Aug | L14: 0.76 | M14: 3.36 | N14: 0.74 | O14: 1.08 | Q14: Maximum: for 1/2 hourly and daily periods use the highest value across all operational combustion lines for the month
A15: Sep | B15: 30 | C15: 1.21 | D15: 4.18 | E15: 5 | F15: 1.22 | G15: 1.88 | K15: Sep | L15: 0.79 | M15: 2.37 | N15: 0.8 | O15: 1.14
A16: Oct | B16: 30 | C16: 1.52 | D16: 16.74 | E16: 5 | F16: 1.53 | G16: 2.5 | K16: Oct | L16: 0.98 | M16: 2.11 | N16: 0.99 | O16: 1.12
A17: Nov | B17: 30 | C17: 1.4 | D17: 7.35 | E17: 5 | F17: 1.4 | G17: 1.94 | K17: Nov
A18: Dec | B18: 30 | C18: 1.58 | D18: 6.67 | E18: 5 | F18: 1.59 | G18: 2.17 | K18: Dec
K19: Annual | L19: =AVERAGE(L7:L18) -> 1.497 | M19: =MAX(M7:M18) -> 13.08 | N19: =AVERAGE(N7:N18) -> 1.494 | O19: =MAX(O7:O18) -> 3.5
J21: =+A5 -> 2024 | K21: mg/Nm3 | L21: Monthly mean of half-hourly averages | M21: Highest half- hourly average | N21: Monthly mean of daily averages | O21: Highest daily average
J22: A2 | K22: Jan | L22: 1.57 | M22: 8.86 | N22: 1.57 | O22: 2.65
K23: Feb | L23: 1.64 | M23: 6.39 | N23: 1.64 | O23: 2.02
K24: Mar | L24: 1.98 | M24: 5.52 | N24: 1.98 | O24: 2.43
K25: Apr | L25: 1.96 | M25: 4.93 | N25: 1.96 | O25: 2.37
K26: May | L26: 1.96 | M26: 5.47 | N26: 1.96 | O26: 3.35
K27: Jun | L27: 1.59 | M27: 13.73 | N27: 1.46 | O27: 2.05
K28: Jul | L28: 1.91 | M28: 7.82 | N28: 1.9 | O28: 3.43
K29: Aug | L29: 1.66 | M29: 5.06 | N29: 1.66 | O29: 2.27
K30: Sep | L30: 1.6 | M30: 4.18 | N30: 1.6 | O30: 1.88
K31: Oct | L31: 1.84 | M31: 16.74 | N31: 1.84 | O31: 2.5
K32: Nov | L32: 1.4 | M32: 7.35 | N32: 1.4 | O32: 1.94
K33: Dec | L33: 1.58 | M33: 6.67 | N33: 1.59 | O33: 2.17
K34: Annual | L34: =AVERAGE(L22:L33) -> 1.724166667 | M34: =MAX(M22:M33) -> 16.74 | N34: =AVERAGE(N22:N33) -> 1.713333333 | O34: =MAX(O22:O33) -> 3.43
J36: =+A5 -> 2024 | K36: mg/Nm3 | L36: Monthly mean of half-hourly averages | M36: Highest half- hourly average | N36: Monthly mean of daily averages | O36: Highest daily average
J37: A3 | K37: Jan
K38: Feb
K39: Mar
K40: Apr
K41: May
K42: Jun
K43: Jul
K44: Aug
K45: Sep
K46: Oct
K47: Nov
A48: Comments : | K48: Dec
K49: Annual | L49: =AVERAGE(L37:L48) -> #DIV/0! | M49: =MAX(M37:M48) -> 0 | N49: =AVERAGE(N37:N48) -> #DIV/0! | O49: =MAX(O37:O48) -> 0
J51: =+A5 -> 2024 | K51: mg/Nm3 | L51: Monthly mean of half-hourly averages | M51: Highest half- hourly average | N51: Monthly mean of daily averages | O51: Highest daily average
J52: A4 | K52: Jan
K53: Feb
K54: Mar
K55: Apr
K56: May
K57: Jun
K58: Jul
K59: Aug
K60: Sep
K61: Oct
C62: 9.245 | D62: 9.401 | E62: 9.358 | F62: 9.326 | K62: Nov
K63: Dec
K64: Annual | L64: =AVERAGE(L52:L63) -> #DIV/0! | M64: =MAX(M52:M63) -> 0 | N64: =AVERAGE(N52:N63) -> #DIV/0! | O64: =MAX(O52:O63) -> 0
J66: =+A5 -> 2024 | K66: mg/Nm3 | L66: Monthly mean of half-hourly averages | M66: Highest half- hourly average | N66: Monthly mean of daily averages | O66: Highest daily average
J67: A5 | K67: Jan
K68: Feb
K69: Mar
K70: Apr
K71: May
K72: Jun
K73: Jul
K74: Aug
K75: Sep
K76: Oct
K77: Nov
K78: Dec
K79: Annual | L79: =AVERAGE(L67:L78) -> #DIV/0! | M79: =MAX(M67:M78) -> 0 | N79: =AVERAGE(N67:N78) -> #DIV/0! | O79: =MAX(O67:O78) -> 0

Sheet CO 0.5 hourly
A1: =+'Cover Page'!$B$29 -> Annual Performance Report 2024 | E1: =+'Cover Page'!$B$33 -> SELCHP
A3: Monitoring of Carbon Monoxide (half hourly) | D3: Whole Installation | G3: See Notes in Cell Q3 | J3: =+A3 -> Monitoring of Carbon Monoxide (half hourly) | N3: Per Combustion Line | Q3: Notes:
A5: Please complete this tab for your plant if you have 1/2 hourly CO ELVs; otherwise, leave it blank and complete the CO 95% 10 min tab
Q7: User to add logic to complete Whole installation, Table A5:G18. From the data in Per Combustion Line, Table J6:O79, subject to No. of lines installed
A8: =+'Cover Page'!C39 -> 2024 | B8: 1/2 Hourly Reference Periods | E8: Daily Reference Periods
A9: mg/Nm3 | B9: 1/2 hourly CO ELV | C9: Monthly mean of half-hourly averages | D9: Highest half- hourly average | E9: Daily CO ELV | F9: Monthly mean of daily averages | G9: Highest daily average | J9: =+A8 -> 2024 | K9: mg/Nm3 | L9: Monthly mean of half-hourly averages | M9: Highest half- hourly average | N9: Monthly mean of daily averages | O9: Highest daily average
A10: Jan | B10: 100 | E10: 50 | J10: A1 | K10: Jan
A11: Feb | B11: =+B10 -> 100 | E11: =+E10 -> 50 | K11: Feb
A12: Mar | B12: 100 | E12: 50 | K12: Mar | Q12: Whole Installation table A5:G18:
A13: Apr | B13: 100 | E13: 50 | K13: Apr | Q13: Mean: for 1/2 hourly and daily periods calculate mean of values across all operational combustion lines for the month
A14: May | B14: 100 | E14: 50 | K14: May
A15: Jun | B15: 100 | E15: 50 | K15: Jun
A16: Jul | B16: 100 | E16: 50 | K16: Jul | Q16: Maximum: for 1/2 hourly and daily periods use the highest value across all operational combustion lines for the month
A17: Aug | B17: 100 | E17: 50 | K17: Aug
A18: Sep | B18: 100 | E18: 50 | K18: Sep
A19: Oct | B19: 100 | E19: 50 | K19: Oct
A20: Nov | B20: 100 | E20: 50 | K20: Nov
A21: Dec | B21: 100 | E21: 50 | K21: Dec
K22: Annual | L22: =AVERAGE(L10:L21) -> #DIV/0! | M22: =MAX(M10:M21) -> 0 | N22: =AVERAGE(N10:N21) -> #DIV/0! | O22: =MAX(O10:O21) -> 0
J24: =+A8 -> 2024 | K24: mg/Nm3 | L24: Monthly mean of half-hourly averages | M24: Highest half- hourly average | N24: Monthly mean of daily averages | O24: Highest daily average
J25: A2 | K25: Jan
K26: Feb
K27: Mar
K28: Apr
K29: May
K30: Jun
K31: Jul
K32: Aug
K33: Sep
K34: Oct
K35: Nov
K36: Dec
K37: Annual | L37: =AVERAGE(L25:L36) -> #DIV/0! | M37: =MAX(M25:M36) -> 0 | N37: =AVERAGE(N25:N36) -> #DIV/0! | O37: =MAX(O25:O36) -> 0
J39: =+A8 -> 2024 | K39: mg/Nm3 | L39: Monthly mean of half-hourly averages | M39: Highest half- hourly average | N39: Monthly mean of daily averages | O39: Highest daily average
J40: A3 | K40: Jan
K41: Feb
K42: Mar
K43: Apr
K44: May
K45: Jun
K46: Jul
K47: Aug
K48: Sep
K49: Oct
K50: Nov
A51: Comments : | K51: Dec
K52: Annual | L52: =AVERAGE(L40:L51) -> #DIV/0! | M52: =MAX(M40:M51) -> 0 | N52: =AVERAGE(N40:N51) -> #DIV/0! | O52: =MAX(O40:O51) -> 0
J54: =+A8 -> 2024 | K54: mg/Nm3 | L54: Monthly mean of half-hourly averages | M54: Highest half- hourly average | N54: Monthly mean of daily averages | O54: Highest daily average
J55: A4 | K55: Jan
K56: Feb
K57: Mar
K58: Apr
K59: May
K60: Jun
K61: Jul
C62: 9.245 | D62: 9.401 | E62: 9.358 | F62: 9.326 | K62: Aug
K63: Sep
K64: Oct
K65: Nov
K66: Dec
K67: Annual | L67: =AVERAGE(L55:L66) -> #DIV/0! | M67: =MAX(M55:M66) -> 0 | N67: =AVERAGE(N55:N66) -> #DIV/0! | O67: =MAX(O55:O66) -> 0
J69: =+A8 -> 2024 | K69: mg/Nm3 | L69: Monthly mean of half-hourly averages | M69: Highest half- hourly average | N69: Monthly mean of daily averages | O69: Highest daily average
J70: A5 | K70: Jan
K71: Feb
K72: Mar
K73: Apr
K74: May
K75: Jun
K76: Jul
K77: Aug
K78: Sep
K79: Oct
K80: Nov
K81: Dec
K82: Annual | L82: =AVERAGE(L70:L81) -> #DIV/0! | M82: =MAX(M70:M81) -> 0 | N82: =AVERAGE(N70:N81) -> #DIV/0! | O82: =MAX(O70:O81) -> 0

Sheet CO 95% 10 min
A1: =+'Cover Page'!$B$29 -> Annual Performance Report 2024 | E1: =+'Cover Page'!$B$33 -> SELCHP
A3: Monitoring of Carbon Monoxide (10-minute avg) | E3: Whole Installation | H3: See Notes in Cell S3 | J3: =+A3 -> Monitoring of Carbon Monoxide (10-minute avg) | O3: Per Combustion Line | Q3: Notes: | S3: Notes:
A5: Please complete this tab for your plant if you have 10-minute average CO ELVs; otherwise, leave it blank and complete the CO 0.5 hourly tab
S7: User to add logic to complete Whole installation, Table A5:H18. From the data in Per Combustion Line, Table K6:Q79, subject to No. of lines installed
A8: =+'Cover Page'!C39 -> 2024 | B8: 10-minute Reference Periods | F8: Daily Reference Periods
A9: mg/Nm3 | B9: 95%ile 10-min avg CO ELV | C9: Highest daily 95%ile 10-min average | D9: Monthly mean of 10-min averages | E9: Highest 10-min average | F9: Daily CO ELV | G9: Monthly mean of daily averages | H9: Highest daily average | K9: =+A8 -> 2024 | L9: mg/Nm3 | M9: Highest daily 95%ile 10-min average | N9: Monthly mean of 10-min averages | O9: Highest 10-min average | P9: Monthly mean of daily averages | Q9: Highest daily average
A10: Jan | B10: 150 | C10: 35.51 | D10: 4.88 | E10: 343.62 | F10: 50 | G10: 4.89 | H10: 10.27 | K10: A1 | L10: Jan | M10: 35.51 | N10: 5.72 | O10: 343.62 | P10: 5.72 | Q10: 10.27
A11: Feb | B11: =+B10 -> 150 | C11: 25.69 | D11: 4.81 | E11: 889.53 | F11: =+F10 -> 50 | G11: 4.81 | H11: 12.44 | L11: Feb | M11: 25.69 | N11: 4.57 | O11: 889.53 | P11: 4.6 | Q11: 12.38
A12: Mar | B12: 150 | C12: 16.98 | D12: 3.84 | E12: 396.64 | F12: 50 | G12: 3.85 | H12: 8.69 | L12: Mar | M12: 16.98 | N12: 4.78 | O12: 396.64 | P12: 4.79 | Q12: 8.69 | S12: Whole Installation table A5:H18:
A13: Apr | B13: 150 | C13: 35.04 | D13: 5.59 | E13: 708.49 | F13: 50 | G13: 5.65 | H13: 14.37 | L13: Apr | M13: 35.04 | N13: 6.8 | O13: 558.79 | P13: 6.97 | Q13: 14.37 | S13: Mean: for 10-min and daily periods use average of all operational combustion lines.
A14: May | B14: 150 | C14: 72.49 | D14: 5.9 | E14: 542.39 | F14: 50 | G14: 5.92 | H14: 17.44 | L14: May | M14: 72.49 | N14: 9.33 | O14: 542.39 | P14: 9.33 | Q14: 17.44
A15: Jun | B15: 150 | C15: 56.46 | D15: 5.61 | E15: 2536.81 | F15: 50 | G15: 5.78 | H15: 21.22 | L15: Jun | M15: 56.46 | N15: 12.18 | O15: 647.74 | P15: 12.19 | Q15: 19.24
A16: Jul | B16: 150 | C16: 80.64 | D16: 7.01 | E16: 762.41 | F16: 50 | G16: 6.64 | H16: 16.39 | L16: Jul | M16: 80.64 | N16: 10.51 | O16: 762.41 | P16: 9.98 | Q16: 16.39 | S16: Maximum: for 10-min and daily periods use the highest of all operational combustion lines in any month.
A17: Aug | B17: 150 | C17: 51.1 | D17: 5.98 | E17: 1016.39 | F17: 50 | G17: 6.07 | H17: 22.16 | L17: Aug | M17: 51.1 | N17: 10.63 | O17: 1016.39 | P17: 10.67 | Q17: 22.16
A18: Sep | B18: 150 | C18: 83.89 | D18: 6.31 | E18: 438.91 | F18: 50 | G18: 6.21 | H18: 18.78 | L18: Sep | M18: 83.89 | N18: 10.8 | O18: 438.91 | P18: 10.68 | Q18: 18.78
A19: Oct | B19: 150 | C19: 65.63 | D19: 5.81 | E19: 515.43 | F19: 50 | G19: 5.89 | H19: 13.8 | L19: Oct | M19: 65.63 | N19: 8.67 | O19: 515.43 | P19: 8.68 | Q19: 13.8
A20: Nov | B20: 150 | C20: 47.52 | D20: 9.64 | E20: 785.25 | F20: 50 | G20: 9.64 | H20: 20.28 | L20: Nov | M20: 47.52 | N20: 9.83 | O20: 785.25 | P20: 9.83 | Q20: 20.28
A21: Dec | B21: 150 | C21: 47.65 | D21: 10.43 | E21: 399.53 | F21: 50 | G21: 10.4 | H21: 14.66 | L21: Dec | M21: 47.65 | N21: 11.47 | O21: 399.53 | P21: 11.47 | Q21: 14.66
L22: Annual | M22: =AVERAGE(M10:M21) -> 51.55 | O22: =MAX(O10:O21) -> 1016.39 | P22: =AVERAGE(P10:P21) -> 8.7425 | Q22: =MAX(Q10:Q21) -> 22.16
K24: =+A8 -> 2024 | L24: mg/Nm3 | M24: Highest daily 95%ile 10-min average | N24: Monthly mean of 10-min averages | O24: Highest 10-min average | P24: Monthly mean of daily averages | Q24: Highest daily average
K25: A2 | L25: Jan | M25: 14.06 | N25: 4.05 | O25: 331.43 | P25: 4.05 | Q25: 7.03
L26: Feb | M26: 14.2 | N26: 5.07 | O26: 154.15 | P26: 5.02 | Q26: 12.44
L27: Mar | M27: 7.99 | N27: 2.96 | O27: 120.07 | P27: 2.97 | Q27: 6.45
L28: Apr | M28: 12.82 | N28: 4.39 | O28: 708.49 | P28: 4.37 | Q28: 12.48
L29: May | M29: 16.55 | N29: 2.49 | O29: 284.19 | P29: 2.5 | Q29: 7.86
L30: Jun | M30: 34.54 | N30: 1.92 | O30: 2536.81 | P30: 2.08 | Q30: 21.22
L31: Jul | M31: 20.68 | N31: 1.19 | O31: 193.18 | P31: 1.29 | Q31: 4.92
L32: Aug | M32: 19.41 | N32: 1.73 | O32: 170.83 | P32: 1.81 | Q32: 9.39
L33: Sep | M33: 23.71 | N33: 2.19 | O33: 375.16 | P33: 2.19 | Q33: 5.3
L34: Oct | M34: 12.63 | N34: 2.69 | O34: 225.11 | P34: 2.68 | Q34: 5.93
L35: Nov | M35: 23.01 | N35: 9.45 | O35: 305.01 | P35: 9.45 | Q35: 14.1
L36: Dec | M36: 17.73 | N36: 9.26 | O36: 258.36 | P36: 9.13 | Q36: 11.04
L37: Annual | M37: =AVERAGE(M25:M36) -> 18.11083333 | O37: =MAX(O25:O36) -> 2536.81 | P37: =AVERAGE(P25:P36) -> 3.961666667 | Q37: =MAX(Q25:Q36) -> 21.22
K39: =+A8 -> 2024 | L39: mg/Nm3 | M39: Highest daily 95%ile 10-min average | N39: Monthly mean of 10-min averages | O39: Highest 10-min average | P39: Monthly mean of daily averages | Q39: Highest daily average
K40: A3 | L40: Jan
L41: Feb
L42: Mar
L43: Apr
L44: May
L45: Jun
L46: Jul
L47: Aug
L48: Sep
L49: Oct
L50: Nov
A51: Comments : | L51: Dec
A52: Environment Agency explanatory note: The 10-minute average ELV is based on the “95th percentile”. In this case this means that 95% of the 10 minute averages in the relevant 24-hour period (i.e. 137) must be below 150 mg/Nm3, and 5% (i.e. 7) are allowed to be any value above 150 mg/Nm3. Whilst we expect operators to minimise CO emissions at all times, it is perfectly acceptable for the value of the maximum 10-minute average to be above 150 mg/Nm3, provided the 95th percentile ELV has been met for that period. | L52: Annual | M52: =AVERAGE(M40:M51) -> #DIV/0! | O52: =MAX(O40:O51) -> 0 | P52: =AVERAGE(P40:P51) -> #DIV/0! | Q52: =MAX(Q40:Q51) -> 0
K54: =+A8 -> 2024 | L54: mg/Nm3 | M54: Highest daily 95%ile 10-min average | N54: Monthly mean of 10-min averages | O54: Highest 10-min average | P54: Monthly mean of daily averages | Q54: Highest daily average
K55: A4 | L55: Jan
L56: Feb
L57: Mar
L58: Apr
L59: May
L60: Jun
L61: Jul
C62: 9.245 | D62: 9.401 | E62: 9.358 | F62: 9.326 | L62: Aug
L63: Sep
L64: Oct
L65: Nov
L66: Dec
L67: Annual | M67: =AVERAGE(M55:M66) -> #DIV/0! | O67: =MAX(O55:O66) -> 0 | P67: =AVERAGE(P55:P66) -> #DIV/0! | Q67: =MAX(Q55:Q66) -> 0
K69: =+A8 -> 2024 | L69: mg/Nm3 | M69: 95%ile 10-min avg maximum | N69: Monthly CO 10-min avg mean | O69: 10-min avg maximum | P69: Monthly daily mean | Q69: Monthly daily maximum
K70: A5 | L70: Jan
L71: Feb
L72: Mar
L73: Apr
L74: May
L75: Jun
L76: Jul
L77: Aug
L78: Sep
L79: Oct
L80: Nov
L81: Dec
L82: Annual | M82: =AVERAGE(M70:M81) -> #DIV/0! | O82: =MAX(O70:O81) -> 0 | P82: =AVERAGE(P70:P81) -> #DIV/0! | Q82: =MAX(Q70:Q81) -> 0

Sheet NH3
A1: =+'Cover Page'!$B$29 -> Annual Performance Report 2024 | E1: =+'Cover Page'!$B$33 -> SELCHP
A3: Monitoring of Ammnonia emissions | D3: Whole Installation | G3: See Notes in Cell Q3 | J3: =+A3 -> Monitoring of Ammnonia emissions | N3: Per Combustion Line | Q3: Notes:
Q4: User to add logic to complete Whole installation, Table A5:G18. From the data in Per Combustion Line, Table J6:O79, subject to No. of lines installed
A5: =+'Cover Page'!C39 -> 2024 | B5: 1/2 Hourly Reference Periods | E5: Daily Reference Periods
A6: mg/Nm3 | B6: 1/2 hourly NH3 ELV | C6: Monthly mean of half-hourly averages | D6: Highest half- hourly average | E6: Daily NH3 ELV | F6: Monthly mean of daily averages | G6: Highest daily average | J6: =+A5 -> 2024 | K6: mg/Nm3 | L6: Monthly mean of half-hourly averages | M6: Highest half- hourly average | N6: Monthly mean of daily averages | O6: Highest daily average
A7: Jan | B7: None | C7: 4.29 | D7: 23.67 | E7: 15 | F7: 4.29 | G7: 8.53 | J7: A1 | K7: Jan | L7: 6.17 | M7: 23.67 | N7: 6.17 | O7: 8.53
A8: Feb | B8: =+B7 -> None | C8: 4.4 | D8: 22.28 | E8: 15 | F8: 4.48 | G8: 9.25 | K8: Feb | L8: 6.29 | M8: 22.28 | N8: 6.4 | O8: 9.25
A9: Mar | B9: None | C9: 3.79 | D9: 20.71 | E9: 15 | F9: 3.79 | G9: 8.32 | K9: Mar | L9: 6.36 | M9: 20.71 | N9: 6.36 | O9: 8.32 | Q9: Whole Installation table A5:G18:
A10: Apr | B10: None | C10: 5.74 | D10: 29.43 | E10: 15 | F10: 5.72 | G10: 10.93 | K10: Apr | L10: 7.81 | M10: 29.43 | N10: 7.83 | O10: 10.93 | Q10: Mean: for 1/2 hourly and daily periods calculate mean of values across all operational combustion lines for the month
A11: May | B11: None | C11: 7.34 | D11: 27.67 | E11: 15 | F11: 7.34 | G11: 12.23 | K11: May | L11: 9.15 | M11: 27.67 | N11: 9.15 | O11: 12.23
A12: Jun | B12: None | C12: 5.7 | D12: 32.57 | E12: 15 | F12: 5.68 | G12: 11.37 | K12: Jun | L12: 7.36 | M12: 32.57 | N12: 7.27 | O12: 11.37
A13: Jul | B13: None | C13: 7.19 | D13: 31.28 | E13: 15 | F13: 7.15 | G13: 12.45 | K13: Jul | L13: 8.09 | M13: 31.28 | N13: 7.98 | O13: 12.45 | Q13: Maximum: for 1/2 hourly and daily periods use the highest value across all operational combustion lines for the month
A14: Aug | B14: None | C14: 6.34 | D14: 22.53 | E14: 15 | F14: 6.37 | G14: 10.55 | K14: Aug | L14: 7.7 | M14: 22.53 | N14: 7.8 | O14: 10.55
A15: Sep | B15: None | C15: 5.76 | D15: 24.22 | E15: 15 | F15: 5.73 | G15: 12.9 | K15: Sep | L15: 7.19 | M15: 24.22 | N15: 7.16 | O15: 12.9
A16: Oct | B16: None | C16: 5.57 | D16: 25.05 | E16: 15 | F16: 5.57 | G16: 10.12 | K16: Oct | L16: 6.85 | M16: 25.05 | N16: 6.85 | O16: 10.12
A17: Nov | B17: None | C17: 3.76 | D17: 28.28 | E17: 15 | F17: 3.76 | G17: 9.37 | K17: Nov | L17: 5.05 | M17: 28.28 | N17: 5.05 | O17: 9.37
A18: Dec | B18: None | C18: 4.83 | D18: 23.22 | E18: 15 | F18: 4.85 | G18: 8.81 | K18: Dec | L18: 5.77 | M18: 23.22 | N18: 5.77 | O18: 8.81
K19: Annual | L19: =AVERAGE(L7:L18) -> 6.9825 | M19: =MAX(M7:M18) -> 32.57 | N19: =AVERAGE(N7:N18) -> 6.9825 | O19: =MAX(O7:O18) -> 12.9
J21: =+A5 -> 2024 | K21: mg/Nm3 | L21: Monthly mean of half-hourly averages | M21: Highest half- hourly average | N21: Monthly mean of daily averages | O21: Highest daily average
J22: A2 | K22: Jan | L22: 2.41 | M22: 8.29 | N22: 2.4 | O22: 3.84
K23: Feb | L23: 2.37 | M23: 13.29 | N23: 2.41 | O23: 5.38
K24: Mar | L24: 1.38 | M24: 10.28 | N24: 1.39 | O24: 3.68
K25: Apr | L25: 3.66 | M25: 14.41 | N25: 3.67 | O25: 7.9
K26: May | L26: 5.54 | M26: 19.57 | N26: 5.54 | O26: 9.05
K27: Jun | L27: 4.76 | M27: 23.11 | N27: 4.77 | O27: 7.96
K28: Jul | L28: 5.7 | M28: 17.58 | N28: 5.83 | O28: 11.14
K29: Aug | L29: 5.1 | M29: 16.19 | N29: 5.04 | O29: 7.96
K30: Sep | L30: 4.44 | M30: 20.44 | N30: 4.44 | O30: 7.76
K31: Oct | L31: 4.15 | M31: 14.85 | N31: 4.09 | O31: 7.3
K32: Nov | L32: 2.48 | M32: 13.37 | N32: 2.48 | O32: 4.87
K33: Dec | L33: 3.76 | M33: 17.04 | N33: 3.75 | O33: 6.35
K34: Annual | L34: =AVERAGE(L22:L33) -> 3.8125 | M34: =MAX(M22:M33) -> 23.11 | N34: =AVERAGE(N22:N33) -> 3.8175 | O34: =MAX(O22:O33) -> 11.14
J36: =+A5 -> 2024 | K36: mg/Nm3 | L36: Monthly mean of half-hourly averages | M36: Highest half- hourly average | N36: Monthly mean of daily averages | O36: Highest daily average
J37: A3 | K37: Jan
K38: Feb
K39: Mar
K40: Apr
K41: May
K42: Jun
K43: Jul
K44: Aug
K45: Sep
K46: Oct
K47: Nov
A48: Comments : | K48: Dec
A49: An indicated ELV value of zero in the table above means that no ammonia limit is/was set in the permit. | K49: Annual | L49: =AVERAGE(L37:L48) -> #DIV/0! | M49: =MAX(M37:M48) -> 0 | N49: =AVERAGE(N37:N48) -> #DIV/0! | O49: =MAX(O37:O48) -> 0
J51: =+A5 -> 2024 | K51: mg/Nm3 | L51: Monthly mean of half-hourly averages | M51: Highest half- hourly average | N51: Monthly mean of daily averages | O51: Highest daily average
J52: A4 | K52: Jan
K53: Feb
K54: Mar
K55: Apr
K56: May
K57: Jun
K58: Jul
K59: Aug
K60: Sep
K61: Oct
C62: 9.245 | D62: 9.401 | E62: 9.358 | F62: 9.326 | K62: Nov
K63: Dec
K64: Annual | L64: =AVERAGE(L52:L63) -> #DIV/0! | M64: =MAX(M52:M63) -> 0 | N64: =AVERAGE(N52:N63) -> #DIV/0! | O64: =MAX(O52:O63) -> 0
J66: =+A5 -> 2024 | K66: mg/Nm3 | L66: Monthly mean of half-hourly averages | M66: Highest half- hourly average | N66: Monthly mean of daily averages | O66: Highest daily average
J67: A5 | K67: Jan
K68: Feb
K69: Mar
K70: Apr
K71: May
K72: Jun
K73: Jul
K74: Aug
K75: Sep
K76: Oct
K77: Nov
K78: Dec
K79: Annual | L79: =AVERAGE(L67:L78) -> #DIV/0! | M79: =MAX(M67:M78) -> 0 | N79: =AVERAGE(N67:N78) -> #DIV/0! | O79: =MAX(O67:O78) -> 0

Sheet Template changes log
A1: Log of changes to template (Environment Agency use only)
A3: Date | B3: Description of change | C3: New version number and date
A4: 2024-01-16 | B4: Air (periodic) tab: corrected default O2 reference from 6 to 11% | C4: Version 23.5a (for incinerators) - 16/01/2024
A5: 2024-09-23 | B5: Air (periodic) tab: corrected symbol for Thallium to Tl
A6: 2024-09-23 | B6: Air (periodic) tab: removed last year's references to different emission limit values applying from 03/12/23 and updated all relevant ELVs
A7: 2024-09-23 | B7: Tabs for continuously monitored pollutants (HCl, SO2 etc.): changed terminology in table headings to improve clarity
A8: 2024-09-23 | B8: Tabs for continuously monitored pollutants (HCl, SO2 etc.): removed last year's references to different emission limit values applying from 03/12/23 and updated all relevant ELVs
A9: 2024-09-23 | B9: Perf 1 tab: updated formula for water usage to report m3 rather than litres and corrected error with formula copying operator name
A10: 2024-09-23 | B10: Operational Summary tab: table added on start-ups and shut-downs
A11: 2024-09-23 | B11: Operational Summary tab: table added on dioxins and mercury protocols
A12: 2024-09-23 | B12: Operational Summary tab: table added on AST, QAL 2 and calibration functions
A13: 2024-09-23 | B13: CO2 N2O tab: various changes made to notes to reflect the fact that most plants should now have calibrated CEMS and flow meters + some have C14 samplers and more up to date industry data | C13: Version 24a (for incinerators) - 23/09/24
A14: 2024-11-08 | B14: CO2 N2O tab: Changed the N2O CO2 equivalence factor from 298 to 265 in line with recently updated government greenhouse gas figures: https://www.gov.uk/government/publications/greenhouse-gas-reporting-conversion-factors-2024
A15: 2024-11-08 | B15: CO2 N2O tab: Added an additional requirement for municipal EfW plants to state the yearly average biogenic percentage of the waste by mass, and reference to a document which sets out a methodology for calculating NCV of waste from the results of C14 sampling.
A16: 2024-11-08 | B16: Permit Compliance tab: Two additional columns added + explanatory notes to the table entitled "Summary of non-compliances under the permit" to allow CCS scores to be stated where relevant.
A17: 2024-11-08 | B17: Residue Quality tab: Note added explaining application of TOC and LOI limits and asking operators to report both metrics where measured. | C17: Version 24.1a (for incinerators) - 08/11/24
A18: 2024-11-27 | B18: Operational Summary tab: Tables on mercury & dioxins protocols and ASTs removed (covered instead by new tables added to updated Air 9 periodic monitoring form) | C18: Version 24.2a (for incinerators) - 27/11/24
